DepartmentFamily,Entity,Date,ExpenseType,ExpenseArea,Supplier,PaymentNumber,InvoiceDistributionAmount,InvoiceDescription,SupplierPostCode,ExpenditureType
FOOD STANDARDS AGENCY - Westminster,FOOD STANDARDS AGENCY - Westminster,2018-07-03,EXP - PURCHASE OF GOODS/SERVICES - OTHER - PROGRAMME EXPENDITURE,Contaminants HoD,C E F A S,2012700467,444532,FS101211 - Sampling and analysis contact to be undertaken by CEFAS,NR33 0HT,PROGRAMME
FOOD STANDARDS AGENCY - Westminster,FOOD STANDARDS AGENCY - Westminster,2018-07-12,EXP - PURCHASE OF GOODS/SERVICES - OTHER ICT COSTS - COMPUTER SOFTWARE,IT Service Delivery,PHOENIX SOFTWARE LIMITED,1011706555,250000,Call Off Contract Ver2.0 Mar 18 GDPR Enterprise Agreement,YO42 1NS,ADMIN
FOOD STANDARDS AGENCY - Westminster,FOOD STANDARDS AGENCY - Westminster,2018-07-12,EXP - PURCHASE OF GOODS/SERVICES - OTHER PROFESSIONAL SERVICES,Operations Local Delivery ,TRADING STANDARDS INSTITUTE (GRANTS),1011706559,248000,Feed Off. Conts 2018/19 Prog delivery (inland/ports). Feed Official Controls funding 2018/19: ,SS15 6TH,ADMIN
FOOD STANDARDS AGENCY - Westminster,FOOD STANDARDS AGENCY - Westminster,2018-07-30,Redacted,Redacted,Redacted,Redacted,110000,Redacted,Redacted,Redacted
FOOD STANDARDS AGENCY - Westminster,FOOD STANDARDS AGENCY - Westminster,2018-07-24,EXP - PURCHASE OF GOODS/SERVICES - IT MANAGEMENT AND CHANGE - IT DEVELOPMENT,Operational Delivery,LITTLE FISH UK LTD,1011706658,71895.5,IT in Meat Plants ? Discovery Work,NG1 1LS,PROGRAMME
FOOD STANDARDS AGENCY - Westminster,FOOD STANDARDS AGENCY - Westminster,2018-07-04,Exp - Purchase Of Goods/Services - Consultancy,NFCU Phase 2,PA CONSULTING SERVICES LTD,1011706467,65066,FSA572: Work package 2 ? NFCU Phase 2,SG8 6DP,PROGRAMME
FOOD STANDARDS AGENCY - Westminster,FOOD STANDARDS AGENCY - Westminster,2018-07-12,EXP - PURCHASE OF GOODS/SERVICES - OTHER PROFESSIONAL SERVICES,Operations Local Delivery ,TRADING STANDARDS INSTITUTE (GRANTS),1011706559,61790,Feed Off. Conts 2018/19 NTS/TSI fees. Feed Official Controls funding 2018/19: NTS/TSI fees,SS15 6TH,ADMIN
FOOD STANDARDS AGENCY - Westminster,FOOD STANDARDS AGENCY - Westminster,2018-07-12,EXP - PURCHASE OF GOODS/SERVICES - OTHER ICT COSTS - COMPUTER SOFTWARE,IT Service Delivery,PHOENIX SOFTWARE LIMITED,1011706555,58760.36,Updated Enterprise Agreement,YO42 1NS,ADMIN
FOOD STANDARDS AGENCY - Westminster,FOOD STANDARDS AGENCY - Westminster,2018-07-12,EXP - PURCHASE OF GOODS/SERVICES - OTHER ICT COSTS - COMPUTER SOFTWARE,IT Service Delivery,PHOENIX SOFTWARE LIMITED,1011706555,50000,MICROSOFT,YO42 1NS,ADMIN
FOOD STANDARDS AGENCY - Westminster,FOOD STANDARDS AGENCY - Westminster,2018-07-06,EXP - PURCHASE OF GOODS/SERVICES - OTHER ICT COSTS - COMPUTER HARDWARE,IT Service Delivery,COREAZURE LTD,1011706495,38903.44,"Datacentre Discovery and Design - Variable - Azure Basket of Goods - VMs, OMS & Storage (WP5)",EC1A 4EN,ADMIN
FOOD STANDARDS AGENCY - Westminster,FOOD STANDARDS AGENCY - Westminster,2018-07-11,EXP - PURCHASE OF GOODS/SERVICES - OTHER - PROGRAMME EXPENDITURE,Operations Local Delivery ,C E F A S,2012700470,36262.5,Shellfish biotoxin monitoring 2018/19,NR33 0HT,PROGRAMME
FOOD STANDARDS AGENCY - Westminster,FOOD STANDARDS AGENCY - Westminster,2018-07-26,EXP - PURCHASE OF GOODS/SERVICES - OTHER - PROGRAMME EXPENDITURE,Operations Local Delivery ,C E F A S,2012700477,36262.5,Shellfish biotoxin monitoring 2018/19,NR33 0HT,PROGRAMME
FOOD STANDARDS AGENCY - Westminster,FOOD STANDARDS AGENCY - Westminster,2018-07-12,EXP - PURCHASE OF GOODS/SERVICES - TELECOMS - TELEPHONE,IT Service Delivery,VODAFONE LTD,1011706560,35562.92,Vodafone Quarterly PSN Charges Q4 2017 - Q4 2018,MK3 5JL,ADMIN
FOOD STANDARDS AGENCY - Westminster,FOOD STANDARDS AGENCY - Westminster,2018-07-16,EXP - PURCHASE OF GOODS/SERVICES - OTHER - PROGRAMME EXPENDITURE,Contaminants HoD,C E F A S,2012700473,33408.93,Consumer Habits Research around Radiological Sites,NR33 0HT,PROGRAMME
FOOD STANDARDS AGENCY - Westminster,FOOD STANDARDS AGENCY - Westminster,2018-07-03,EXP - PURCHASE OF GOODS/SERVICES - SUPPORT,OWOW,RAINMAKER SOLUTIONS LTD,1011706460,32000,"To provide a)	Adoption frameworkb)	Training packages for Office 365",MK18 1HD,ADMIN
FOOD STANDARDS AGENCY - Westminster,FOOD STANDARDS AGENCY - Westminster,2018-07-06,EXP - PURCHASE OF GOODS/SERVICES - OTHER ICT COSTS - COMPUTER HARDWARE,IT Service Delivery,COREAZURE LTD,1011706495,31655,Datacentre Discovery and Design ,EC1A 4EN,ADMIN
FOOD STANDARDS AGENCY - Westminster,FOOD STANDARDS AGENCY - Westminster,2018-07-19,EXP - PURCHASE OF GOODS/SERVICES - TELECOMS - MOBILE PHONES,IT Service Delivery,EE LTD,1011706598,29021.57,EE Mobile Contract over 24 months,AL10 9BW,ADMIN
FOOD STANDARDS AGENCY - Westminster,FOOD STANDARDS AGENCY - Westminster,2018-07-27,EXP - AMORTISATION - INTANGIBLE ASSETS,IT Strategy,COMPUTACENTER UK LTD,1011706698,28717.39,Switch & Firewall - Catalyst 2960-X & ASA 5516-X & ASA 5525-X,AL10 9TW,CAPITAL
FOOD STANDARDS AGENCY - Westminster,FOOD STANDARDS AGENCY - Westminster,2018-07-02,EXP - PURCHASE OF GOODS/SERVICES - IT MANAGEMENT AND CHANGE - IT DEVELOPMENT,Digital,RAINMAKER SOLUTIONS LTD,1011706447,27348,Delivering a digital Food Standards Agency: Internal Services Transformation,MK18 1HD,ADMIN
FOOD STANDARDS AGENCY - Westminster,FOOD STANDARDS AGENCY - Westminster,2018-07-06,EXP - PURCHASE OF GOODS/SERVICES - OTHER PROFESSIONAL SERVICES,Operational Delivery,ARCO UK LTD,1011706506,27287.63,Additional Line for PO 11770002606 - 2 year extension to contract,HU1 2SJ,PROGRAMME
FOOD STANDARDS AGENCY - Westminster,FOOD STANDARDS AGENCY - Westminster,2018-07-13,EXP - PURCHASE OF GOODS/SERVICES - IT MANAGEMENT AND CHANGE - IT DEVELOPMENT,Digital,RAINMAKER SOLUTIONS LTD,1011706569,26500,Digital Workplace fixed work price,MK18 1HD,ADMIN
FOOD STANDARDS AGENCY - Westminster,FOOD STANDARDS AGENCY - Westminster,2018-07-19,EXP - PURCHASE OF GOODS/SERVICES - OTHER - PROGRAMME EXPENDITURE,Analysis & Research Branch,KANTAR UK,1011706594,25489,FS303017:Biannual Public Attitudes Tracker ? Wave 16 (May-July 2018) ,W5 1UA,PROGRAMME
FOOD STANDARDS AGENCY - Westminster,FOOD STANDARDS AGENCY - Westminster,2018-07-02,EXP - PURCHASE OF GOODS/SERVICES - IT MANAGEMENT AND CHANGE - IT DEVELOPMENT,Digital,RAINMAKER SOLUTIONS LTD,1011706447,25203.5,Delivering a digital Food Standards Agency: Internal Services Transformation,MK18 1HD,ADMIN
FOOD STANDARDS AGENCY - Westminster,FOOD STANDARDS AGENCY - Westminster,2018-07-05,EXP - PURCHASE OF GOODS/SERV - SUPPORT - IT SUPPORT SERVICES,IT Service Delivery,LITTLE FISH UK LTD,1011706483,24611,Littlefish End service charge,NG1 1LS,ADMIN
FOOD STANDARDS AGENCY - Westminster,FOOD STANDARDS AGENCY - Westminster,2018-07-05,EXP - PURCHASE OF GOODS/SERV - SUPPORT - IT SUPPORT SERVICES,IT Service Delivery,LITTLE FISH UK LTD,1011706483,24264,Littlefish End service charge,NG1 1LS,ADMIN
FOOD STANDARDS AGENCY - Westminster,FOOD STANDARDS AGENCY - Westminster,2018-07-10,EXP - PURCHASE OF GOODS/SERV - SUPPORT - IT SUPPORT SERVICES,Finance Director & Branch,SHARED SERVICES CONNECTED LTD,1011706521,24178.93,SSCL Core Charge Management Services 2018-19.  ,HP2 7AH,ADMIN
FOOD STANDARDS AGENCY - Westminster,FOOD STANDARDS AGENCY - Westminster,2018-07-26,EXP - PURCHASE OF GOODS/SERVICES - OTHER - PROGRAMME EXPENDITURE,Operations Local Delivery ,C E F A S,2012700477,22778.64,Phytoplankton sampling shellfish 2018-19,NR33 0HT,PROGRAMME
FOOD STANDARDS AGENCY - Westminster,FOOD STANDARDS AGENCY - Westminster,2018-07-20,EXP - PURCHASE OF GOODS/SERVICES - ACCOMMODATION & BLDNG MANAGEMENT,Operational Delivery,BERENDSEN UK LTD,1011706605,21991.63,Berendsen Laundry Lot 2 - Laundry Services 2018 - 2019,RG24 8NE,PROGRAMME
FOOD STANDARDS AGENCY - Westminster,FOOD STANDARDS AGENCY - Westminster,2018-07-11,EXP - PURCHASE OF GOODS/SERVICES - OTHER - PROGRAMME EXPENDITURE,Operations Local Delivery ,C E F A S,2012700470,21076,Shellfish classification,NR33 0HT,PROGRAMME
FOOD STANDARDS AGENCY - Westminster,FOOD STANDARDS AGENCY - Westminster,2018-07-26,EXP - PURCHASE OF GOODS/SERVICES - OTHER - PROGRAMME EXPENDITURE,Operations Local Delivery ,C E F A S,2012700477,21076,Shellfish classification,NR33 0HT,PROGRAMME
FOOD STANDARDS AGENCY - Westminster,FOOD STANDARDS AGENCY - Westminster,2018-07-25,EXP - PURCHASE OF GOODS/SERVICES - OTHER - PROGRAMME EXPENDITURE,Scientific Methods & Laboratory Policy,FERA SCIENCE LIMITED,1011706667,15820.71,National Reference Laboratory for Contaminants for core costs and ad hoc costs in : 2017 - 2018,YO41 1LZ,PROGRAMME
FOOD STANDARDS AGENCY - Westminster,FOOD STANDARDS AGENCY - Westminster,2018-07-25,EXP - PURCHASE OF GOODS/SERVICES - OTHER - PROGRAMME EXPENDITURE,Scientific Methods & Laboratory Policy,FERA SCIENCE LIMITED,1011706667,14231.21,National Reference Laboratory for Contaminants for core costs and ad hoc costs in : 2018 - 2019,YO41 1LZ,PROGRAMME
FOOD STANDARDS AGENCY - Westminster,FOOD STANDARDS AGENCY - Westminster,2018-07-04,Exp - Purchase Of Goods/Services - Consultancy,NFCU Phase 2,PA CONSULTING SERVICES LTD,1011706467,13013.2,PO 11770003754,SG8 6DP,PROGRAMME
FOOD STANDARDS AGENCY - Westminster,FOOD STANDARDS AGENCY - Westminster,2018-07-12,EXP - PURCHASE OF GOODS/SERVICES - OTHER ICT COSTS - COMPUTER SOFTWARE,IT Service Delivery,PHOENIX SOFTWARE LIMITED,1011706555,11752.07,CORE INFRASTUCTURE,YO42 1NS,ADMIN
FOOD STANDARDS AGENCY - Westminster,FOOD STANDARDS AGENCY - Westminster,2018-07-12,EXP - PURCHASE OF GOODS/SERVICES - TELECOMS - TELEPHONE,IT Service Delivery,VODAFONE LTD,1011706560,7112.58,SUNDRY CHARGES,MK3 5JL,ADMIN
FOOD STANDARDS AGENCY - Westminster,FOOD STANDARDS AGENCY - Westminster,2018-07-19,EXP - PURCHASE OF GOODS/SERVICES - TELECOMS - MOBILE PHONES,IT Service Delivery,EE LTD,1011706598,5748.66,PO NO 11770002901,AL10 9BW,ADMIN
FOOD STANDARDS AGENCY - Westminster,FOOD STANDARDS AGENCY - Westminster,2018-07-27,EXP - AMORTISATION - INTANGIBLE ASSETS,IT Strategy,COMPUTACENTER UK LTD,1011706698,5743.48,"C18062114134372690, C18062114134372692",AL10 9TW,CAPITAL
FOOD STANDARDS AGENCY - Westminster,FOOD STANDARDS AGENCY - Westminster,2018-07-06,EXP - PURCHASE OF GOODS/SERVICES - OTHER PROFESSIONAL SERVICES,Operational Delivery,ARCO UK LTD,1011706506,5457.55,DETAILS FOR PO 11770002606,HU1 2SJ,PROGRAMME
FOOD STANDARDS AGENCY - Westminster,FOOD STANDARDS AGENCY - Westminster,2018-07-13,EXP - PURCHASE OF GOODS/SERVICES - IT MANAGEMENT AND CHANGE - IT DEVELOPMENT,Digital,RAINMAKER SOLUTIONS LTD,1011706569,5300,AGREED FIXED PRICE,MK18 1HD,ADMIN
FOOD STANDARDS AGENCY - Westminster,FOOD STANDARDS AGENCY - Westminster,2018-07-24,EXP - PURCHASE OF GOODS/SERVICES - RAIL TRAVEL,Operational Delivery,CORPORATE TRAVEL MANAGEMENT NORTH LTD,1011706641,3573.6,TRAVEL EXPENSES WK 28,BD1 5HQ,PROGRAMME
FOOD STANDARDS AGENCY - Westminster,FOOD STANDARDS AGENCY - Westminster,2018-07-09,EXP - PURCHASE OF GOODS/SERVICES - AIR TRAVEL,Imports & Exports Team (Admin),CORPORATE TRAVEL MANAGEMENT NORTH LTD,1011706509,2813.91,TRAVEL EXPENSES WK 26,BD1 5HQ,ADMIN
FOOD STANDARDS AGENCY - Westminster,FOOD STANDARDS AGENCY - Westminster,2018-07-20,EXP - PURCHASE OF GOODS/SERVICES - RAIL TRAVEL,Operational Delivery,CORPORATE TRAVEL MANAGEMENT NORTH LTD,1011706613,2374.25,TRAVEL EXPENSES WK 27,BD1 5HQ,PROGRAMME
FOOD STANDARDS AGENCY - Westminster,FOOD STANDARDS AGENCY - Westminster,2018-07-09,EXP - PURCHASE OF GOODS/SERVICES - RAIL TRAVEL,Operational Delivery,CORPORATE TRAVEL MANAGEMENT NORTH LTD,1011706509,2210.6,TRAVEL EXPENSES WK 26,BD1 5HQ,PROGRAMME
FOOD STANDARDS AGENCY - Westminster,FOOD STANDARDS AGENCY - Westminster,2018-07-02,EXP - PURCHASE OF GOODS/SERVICES - IT MANAGEMENT AND CHANGE - IT DEVELOPMENT,Digital,RAINMAKER SOLUTIONS LTD,1011706447,2144.5,Contract FSA540: Delivering a digital FSA-Work package ,MK18 1HD,ADMIN
FOOD STANDARDS AGENCY - Westminster,FOOD STANDARDS AGENCY - Westminster,2018-07-24,EXP - PURCHASE OF GOODS/SERVICES - RAIL TRAVEL,Organisational Development,CORPORATE TRAVEL MANAGEMENT NORTH LTD,1011706641,2060,TRAVEL EXPENSES WK 28,BD1 5HQ,ADMIN
FOOD STANDARDS AGENCY - Westminster,FOOD STANDARDS AGENCY - Westminster,2018-07-03,EXP - PURCHASE OF GOODS/SERVICES - RAIL TRAVEL,Operations Assurance ,CORPORATE TRAVEL MANAGEMENT NORTH LTD,1011706459,1898.62,TRAVEL EXPENSES WK 25,BD1 5HQ,PROGRAMME
FOOD STANDARDS AGENCY - Westminster,FOOD STANDARDS AGENCY - Westminster,2018-07-12,EXP - PURCHASE OF GOODS/SERVICES - OTHER ICT COSTS - COMPUTER SOFTWARE,IT Service Delivery,PHOENIX SOFTWARE LIMITED,1011706555,1791.68,Updated Enterprise Agreement,YO42 1NS,ADMIN
FOOD STANDARDS AGENCY - Westminster,FOOD STANDARDS AGENCY - Westminster,2018-07-24,EXP - PURCHASE OF GOODS/SERVICES - RAIL TRAVEL,Operations Local Delivery ,CORPORATE TRAVEL MANAGEMENT NORTH LTD,1011706641,1789.75,TRAVEL EXPENSES WK 28,BD1 5HQ,ADMIN
FOOD STANDARDS AGENCY - Westminster,FOOD STANDARDS AGENCY - Westminster,2018-07-20,EXP - PURCHASE OF GOODS/SERVICES - SUBSISTENCE,Food Crime Unit - Prog,CORPORATE TRAVEL MANAGEMENT NORTH LTD,1011706613,1741.19,TRAVEL EXPENSES WK 27,BD1 5HQ,PROGRAMME
FOOD STANDARDS AGENCY - Westminster,FOOD STANDARDS AGENCY - Westminster,2018-07-24,EXP - PURCHASE OF GOODS/SERVICES - RAIL TRAVEL,Operations Assurance ,CORPORATE TRAVEL MANAGEMENT NORTH LTD,1011706641,1716.02,TRAVEL EXPENSES WK 28,BD1 5HQ,PROGRAMME
FOOD STANDARDS AGENCY - Westminster,FOOD STANDARDS AGENCY - Westminster,2018-07-20,EXP - PURCHASE OF GOODS/SERVICES - SUBSISTENCE,Operational Delivery,CORPORATE TRAVEL MANAGEMENT NORTH LTD,1011706613,1519.33,TRAVEL EXPENSES WK 27,BD1 5HQ,PROGRAMME
FOOD STANDARDS AGENCY - Westminster,FOOD STANDARDS AGENCY - Westminster,2018-07-20,EXP - PURCHASE OF GOODS/SERVICES - RAIL TRAVEL,Organisational Development,CORPORATE TRAVEL MANAGEMENT NORTH LTD,1011706613,1457.2,TRAVEL EXPENSES WK 27,BD1 5HQ,ADMIN
FOOD STANDARDS AGENCY - Westminster,FOOD STANDARDS AGENCY - Westminster,2018-07-20,EXP - PURCHASE OF GOODS/SERVICES - RAIL TRAVEL,Operations Assurance ,CORPORATE TRAVEL MANAGEMENT NORTH LTD,1011706613,1375,TRAVEL EXPENSES WK 27,BD1 5HQ,PROGRAMME
FOOD STANDARDS AGENCY - Westminster,FOOD STANDARDS AGENCY - Westminster,2018-07-09,EXP - PURCHASE OF GOODS/SERVICES - RAIL TRAVEL,Operations Local Delivery ,CORPORATE TRAVEL MANAGEMENT NORTH LTD,1011706509,1225.3,TRAVEL EXPENSES WK 26,BD1 5HQ,ADMIN
FOOD STANDARDS AGENCY - Westminster,FOOD STANDARDS AGENCY - Westminster,2018-07-09,EXP - PURCHASE OF GOODS/SERVICES - RAIL TRAVEL,Organisational Development,CORPORATE TRAVEL MANAGEMENT NORTH LTD,1011706509,1148.95,TRAVEL EXPENSES WK 26,BD1 5HQ,ADMIN
FOOD STANDARDS AGENCY - Westminster,FOOD STANDARDS AGENCY - Westminster,2018-07-20,EXP - PURCHASE OF GOODS/SERVICES - SUBSISTENCE,Operations Assurance ,CORPORATE TRAVEL MANAGEMENT NORTH LTD,1011706613,1128.75,TRAVEL EXPENSES WK 27,BD1 5HQ,PROGRAMME
FOOD STANDARDS AGENCY - Westminster,FOOD STANDARDS AGENCY - Westminster,2018-07-03,EXP - PURCHASE OF GOODS/SERVICES - RAIL TRAVEL,Operational Delivery,CORPORATE TRAVEL MANAGEMENT NORTH LTD,1011706459,1127.86,TRAVEL EXPENSES WK 25,BD1 5HQ,PROGRAMME
FOOD STANDARDS AGENCY - Westminster,FOOD STANDARDS AGENCY - Westminster,2018-07-03,EXP - PURCHASE OF GOODS/SERVICES - RAIL TRAVEL,Regulating our Future,CORPORATE TRAVEL MANAGEMENT NORTH LTD,1011706459,1107.3,TRAVEL EXPENSES WK 25,BD1 5HQ,ADMIN
FOOD STANDARDS AGENCY - Westminster,FOOD STANDARDS AGENCY - Westminster,2018-07-09,EXP - PURCHASE OF GOODS/SERVICES - RAIL TRAVEL,Operations Assurance ,CORPORATE TRAVEL MANAGEMENT NORTH LTD,1011706509,1068.9,TRAVEL EXPENSES WK 26,BD1 5HQ,PROGRAMME
FOOD STANDARDS AGENCY - Westminster,FOOD STANDARDS AGENCY - Westminster,2018-07-20,EXP - PURCHASE OF GOODS/SERVICES - RAIL TRAVEL,Operations Local Delivery ,CORPORATE TRAVEL MANAGEMENT NORTH LTD,1011706613,1025.05,TRAVEL EXPENSES WK 27,BD1 5HQ,ADMIN
FOOD STANDARDS AGENCY - Westminster,FOOD STANDARDS AGENCY - Westminster,2018-07-20,EXP - PURCHASE OF GOODS/SERVICES - RAIL TRAVEL,Regulating our Future,CORPORATE TRAVEL MANAGEMENT NORTH LTD,1011706613,955.8,TRAVEL EXPENSES WK 27,BD1 5HQ,ADMIN
FOOD STANDARDS AGENCY - Westminster,FOOD STANDARDS AGENCY - Westminster,2018-07-24,EXP - PURCHASE OF GOODS/SERVICES - RAIL TRAVEL,Regulating our Future,CORPORATE TRAVEL MANAGEMENT NORTH LTD,1011706641,920.15,TRAVEL EXPENSES WK 28,BD1 5HQ,ADMIN
FOOD STANDARDS AGENCY - Westminster,FOOD STANDARDS AGENCY - Westminster,2018-07-24,EXP - PURCHASE OF GOODS/SERVICES - SUBSISTENCE,Operations Assurance ,CORPORATE TRAVEL MANAGEMENT NORTH LTD,1011706641,916.18,TRAVEL EXPENSES WK 28,BD1 5HQ,PROGRAMME
FOOD STANDARDS AGENCY - Westminster,FOOD STANDARDS AGENCY - Westminster,2018-07-20,EXP - PURCHASE OF GOODS/SERVICES - SUBSISTENCE,Food Incidents & Resilience - Prog,CORPORATE TRAVEL MANAGEMENT NORTH LTD,1011706613,914.35,TRAVEL EXPENSES WK 27,BD1 5HQ,PROGRAMME
FOOD STANDARDS AGENCY - Westminster,FOOD STANDARDS AGENCY - Westminster,2018-07-09,EXP - PURCHASE OF GOODS/SERVICES - RAIL TRAVEL,IT Information & Knowledge Management,CORPORATE TRAVEL MANAGEMENT NORTH LTD,1011706509,876.9,TRAVEL EXPENSES WK 26,BD1 5HQ,ADMIN
FOOD STANDARDS AGENCY - Westminster,FOOD STANDARDS AGENCY - Westminster,2018-07-20,EXP - PURCHASE OF GOODS/SERVICES - RAIL TRAVEL,Procurement,CORPORATE TRAVEL MANAGEMENT NORTH LTD,1011706613,855.5,TRAVEL EXPENSES WK 27,BD1 5HQ,ADMIN
FOOD STANDARDS AGENCY - Westminster,FOOD STANDARDS AGENCY - Westminster,2018-07-03,EXP - PURCHASE OF GOODS/SERVICES - RAIL TRAVEL,Operations Local Delivery ,CORPORATE TRAVEL MANAGEMENT NORTH LTD,1011706459,848.7,TRAVEL EXPENSES WK 25,BD1 5HQ,ADMIN
FOOD STANDARDS AGENCY - Westminster,FOOD STANDARDS AGENCY - Westminster,2018-07-03,EXP - PURCHASE OF GOODS/SERVICES - SUBSISTENCE,Operations Local Delivery ,CORPORATE TRAVEL MANAGEMENT NORTH LTD,1011706459,822.16,TRAVEL EXPENSES WK 25,BD1 5HQ,ADMIN
FOOD STANDARDS AGENCY - Westminster,FOOD STANDARDS AGENCY - Westminster,2018-07-03,EXP - PURCHASE OF GOODS/SERVICES - RAIL TRAVEL,IT Service Delivery,CORPORATE TRAVEL MANAGEMENT NORTH LTD,1011706459,804.7,TRAVEL EXPENSES WK 25,BD1 5HQ,ADMIN
FOOD STANDARDS AGENCY - Westminster,FOOD STANDARDS AGENCY - Westminster,2018-07-03,EXP - PURCHASE OF GOODS/SERVICES - FOREIGN SUBSISTENCE,Allergens,CORPORATE TRAVEL MANAGEMENT NORTH LTD,1011706459,783.89,TRAVEL EXPENSES WK 25,BD1 5HQ,ADMIN
FOOD STANDARDS AGENCY - Westminster,FOOD STANDARDS AGENCY - Westminster,2018-07-03,EXP - PURCHASE OF GOODS/SERVICES - RAIL TRAVEL,Organisational Development,CORPORATE TRAVEL MANAGEMENT NORTH LTD,1011706459,776.05,TRAVEL EXPENSES WK 25,BD1 5HQ,ADMIN
FOOD STANDARDS AGENCY - Westminster,FOOD STANDARDS AGENCY - Westminster,2018-07-20,EXP - PURCHASE OF GOODS/SERVICES - FOREIGN SUBSISTENCE,Scientific Methods & Laboratory Policy,CORPORATE TRAVEL MANAGEMENT NORTH LTD,1011706613,764.16,TRAVEL EXPENSES WK 27,BD1 5HQ,ADMIN
FOOD STANDARDS AGENCY - Westminster,FOOD STANDARDS AGENCY - Westminster,2018-07-24,EXP - PURCHASE OF GOODS/SERVICES - SUBSISTENCE,Non Meat Field Ops,CORPORATE TRAVEL MANAGEMENT NORTH LTD,1011706641,757.39,TRAVEL EXPENSES WK 28,BD1 5HQ,PROGRAMME
FOOD STANDARDS AGENCY - Westminster,FOOD STANDARDS AGENCY - Westminster,2018-07-24,EXP - PURCHASE OF GOODS/SERVICES - SUBSISTENCE,Comms Directors Office,CORPORATE TRAVEL MANAGEMENT NORTH LTD,1011706641,754.25,TRAVEL EXPENSES WK 28,BD1 5HQ,ADMIN
FOOD STANDARDS AGENCY - Westminster,FOOD STANDARDS AGENCY - Westminster,2018-07-03,EXP - PURCHASE OF GOODS/SERVICES - FOREIGN SUBSISTENCE,Animal Feed Branch,CORPORATE TRAVEL MANAGEMENT NORTH LTD,1011706459,722.54,TRAVEL EXPENSES WK 25,BD1 5HQ,ADMIN
FOOD STANDARDS AGENCY - Westminster,FOOD STANDARDS AGENCY - Westminster,2018-07-09,EXP - PURCHASE OF GOODS/SERVICES - SUBSISTENCE,Operations Local Delivery ,CORPORATE TRAVEL MANAGEMENT NORTH LTD,1011706509,706.66,TRAVEL EXPENSES WK 26,BD1 5HQ,ADMIN
FOOD STANDARDS AGENCY - Westminster,FOOD STANDARDS AGENCY - Westminster,2018-07-03,EXP - PURCHASE OF GOODS/SERVICES - SUBSISTENCE,Operational Delivery,CORPORATE TRAVEL MANAGEMENT NORTH LTD,1011706459,690.38,TRAVEL EXPENSES WK 25,BD1 5HQ,PROGRAMME
FOOD STANDARDS AGENCY - Westminster,FOOD STANDARDS AGENCY - Westminster,2018-07-20,EXP - PURCHASE OF GOODS/SERVICES - AIR TRAVEL,Imports & Exports Team (Admin),CORPORATE TRAVEL MANAGEMENT NORTH LTD,1011706613,689.1,TRAVEL EXPENSES WK 27,BD1 5HQ,ADMIN
FOOD STANDARDS AGENCY - Westminster,FOOD STANDARDS AGENCY - Westminster,2018-07-09,EXP - PURCHASE OF GOODS/SERVICES - SUBSISTENCE,Operations Assurance ,CORPORATE TRAVEL MANAGEMENT NORTH LTD,1011706509,667.24,TRAVEL EXPENSES WK 26,BD1 5HQ,PROGRAMME
FOOD STANDARDS AGENCY - Westminster,FOOD STANDARDS AGENCY - Westminster,2018-07-03,EXP - PURCHASE OF GOODS/SERVICES - RAIL TRAVEL,Food Incidents & Resilience - Prog,CORPORATE TRAVEL MANAGEMENT NORTH LTD,1011706459,654.9,TRAVEL EXPENSES WK 25,BD1 5HQ,PROGRAMME
FOOD STANDARDS AGENCY - Westminster,FOOD STANDARDS AGENCY - Westminster,2018-07-09,EXP - PURCHASE OF GOODS/SERVICES - SUBSISTENCE,Regulating our Future,CORPORATE TRAVEL MANAGEMENT NORTH LTD,1011706509,641.43,TRAVEL EXPENSES WK 26,BD1 5HQ,ADMIN
FOOD STANDARDS AGENCY - Westminster,FOOD STANDARDS AGENCY - Westminster,2018-07-24,EXP - PURCHASE OF GOODS/SERVICES - RAIL TRAVEL,Regulatory & International,CORPORATE TRAVEL MANAGEMENT NORTH LTD,1011706641,637.6,TRAVEL EXPENSES WK 28,BD1 5HQ,ADMIN
FOOD STANDARDS AGENCY - Westminster,FOOD STANDARDS AGENCY - Westminster,2018-07-09,EXP - PURCHASE OF GOODS/SERVICES - SUBSISTENCE,Chief Scientist,CORPORATE TRAVEL MANAGEMENT NORTH LTD,1011706509,634.8,TRAVEL EXPENSES WK 26,BD1 5HQ,ADMIN
FOOD STANDARDS AGENCY - Westminster,FOOD STANDARDS AGENCY - Westminster,2018-07-20,EXP - PURCHASE OF GOODS/SERVICES - AIR TRAVEL,Operations Assurance ,CORPORATE TRAVEL MANAGEMENT NORTH LTD,1011706613,629.02,TRAVEL EXPENSES WK 27,BD1 5HQ,PROGRAMME
FOOD STANDARDS AGENCY - Westminster,FOOD STANDARDS AGENCY - Westminster,2018-07-09,EXP - PURCHASE OF GOODS/SERVICES - RAIL TRAVEL,Regulating our Future,CORPORATE TRAVEL MANAGEMENT NORTH LTD,1011706509,626.8,TRAVEL EXPENSES WK 26,BD1 5HQ,ADMIN
FOOD STANDARDS AGENCY - Westminster,FOOD STANDARDS AGENCY - Westminster,2018-07-03,EXP - PURCHASE OF GOODS/SERVICES - SUBSISTENCE,Operations Assurance ,CORPORATE TRAVEL MANAGEMENT NORTH LTD,1011706459,610.64,TRAVEL EXPENSES WK 25,BD1 5HQ,PROGRAMME
FOOD STANDARDS AGENCY - Westminster,FOOD STANDARDS AGENCY - Westminster,2018-07-20,EXP - PURCHASE OF GOODS/SERVICES - RAIL TRAVEL,IT Information & Knowledge Management,CORPORATE TRAVEL MANAGEMENT NORTH LTD,1011706613,604.6,TRAVEL EXPENSES WK 27,BD1 5HQ,ADMIN
FOOD STANDARDS AGENCY - Westminster,FOOD STANDARDS AGENCY - Westminster,2018-07-09,EXP - PURCHASE OF GOODS/SERVICES - RAIL TRAVEL,Comms Directors Office,CORPORATE TRAVEL MANAGEMENT NORTH LTD,1011706509,599.7,TRAVEL EXPENSES WK 26,BD1 5HQ,ADMIN
FOOD STANDARDS AGENCY - Westminster,FOOD STANDARDS AGENCY - Westminster,2018-07-09,EXP - PURCHASE OF GOODS/SERVICES - SUBSISTENCE,IT Information & Knowledge Management,CORPORATE TRAVEL MANAGEMENT NORTH LTD,1011706509,577.8,TRAVEL EXPENSES WK 26,BD1 5HQ,ADMIN
FOOD STANDARDS AGENCY - Westminster,FOOD STANDARDS AGENCY - Westminster,2018-07-03,EXP - PURCHASE OF GOODS/SERVICES - FOREIGN SUBSISTENCE,Imports & Exports Team (Admin),CORPORATE TRAVEL MANAGEMENT NORTH LTD,1011706459,574.69,TRAVEL EXPENSES WK 25,BD1 5HQ,ADMIN
FOOD STANDARDS AGENCY - Westminster,FOOD STANDARDS AGENCY - Westminster,2018-07-20,EXP - PURCHASE OF GOODS/SERVICES - RAIL TRAVEL,Legal Branch A & Investigations,CORPORATE TRAVEL MANAGEMENT NORTH LTD,1011706613,571.7,TRAVEL EXPENSES WK 27,BD1 5HQ,ADMIN
FOOD STANDARDS AGENCY - Westminster,FOOD STANDARDS AGENCY - Westminster,2018-07-24,EXP - PURCHASE OF GOODS/SERVICES - RAIL TRAVEL,North 4,CORPORATE TRAVEL MANAGEMENT NORTH LTD,1011706641,565,TRAVEL EXPENSES WK 28,BD1 5HQ,PROGRAMME
FOOD STANDARDS AGENCY - Westminster,FOOD STANDARDS AGENCY - Westminster,2018-07-03,EXP - PURCHASE OF GOODS/SERVICES - RAIL TRAVEL,Comms Directors Office,CORPORATE TRAVEL MANAGEMENT NORTH LTD,1011706459,560.7,TRAVEL EXPENSES WK 25,BD1 5HQ,ADMIN
FOOD STANDARDS AGENCY - Westminster,FOOD STANDARDS AGENCY - Westminster,2018-07-09,EXP - PURCHASE OF GOODS/SERVICES -  FOREIGN AIR TRAVEL,Regulatory & International,CORPORATE TRAVEL MANAGEMENT NORTH LTD,1011706509,556.81,TRAVEL EXPENSES WK 26,BD1 5HQ,ADMIN
FOOD STANDARDS AGENCY - Westminster,FOOD STANDARDS AGENCY - Westminster,2018-07-20,EXP - PURCHASE OF GOODS/SERVICES - RAIL TRAVEL,Comms Directors Office,CORPORATE TRAVEL MANAGEMENT NORTH LTD,1011706613,543.1,TRAVEL EXPENSES WK 27,BD1 5HQ,ADMIN
FOOD STANDARDS AGENCY - Westminster,FOOD STANDARDS AGENCY - Westminster,2018-07-03,EXP - PURCHASE OF GOODS/SERVICES - SUBSISTENCE,Regulating our Future,CORPORATE TRAVEL MANAGEMENT NORTH LTD,1011706459,536.05,TRAVEL EXPENSES WK 25,BD1 5HQ,ADMIN
FOOD STANDARDS AGENCY - Westminster,FOOD STANDARDS AGENCY - Westminster,2018-07-09,EXP - PURCHASE OF GOODS/SERVICES - SUBSISTENCE,Internal Audit,CORPORATE TRAVEL MANAGEMENT NORTH LTD,1011706509,531.72,TRAVEL EXPENSES WK 26,BD1 5HQ,ADMIN
FOOD STANDARDS AGENCY - Westminster,FOOD STANDARDS AGENCY - Westminster,2018-07-03,EXP - PURCHASE OF GOODS/SERVICES - RAIL TRAVEL,Chief Executive & Private Office,CORPORATE TRAVEL MANAGEMENT NORTH LTD,1011706459,525,TRAVEL EXPENSES WK 25,BD1 5HQ,ADMIN
FOOD STANDARDS AGENCY - Westminster,FOOD STANDARDS AGENCY - Westminster,2018-07-24,EXP - PURCHASE OF GOODS/SERVICES - RAIL TRAVEL,Comms Directors Office,CORPORATE TRAVEL MANAGEMENT NORTH LTD,1011706641,524.3,TRAVEL EXPENSES WK 28,BD1 5HQ,ADMIN
FOOD STANDARDS AGENCY - Westminster,FOOD STANDARDS AGENCY - Westminster,2018-07-20,EXP - PURCHASE OF GOODS/SERVICES - RAIL TRAVEL,Food Incidents & Resilience - Prog,CORPORATE TRAVEL MANAGEMENT NORTH LTD,1011706613,523.8,TRAVEL EXPENSES WK 27,BD1 5HQ,PROGRAMME
FOOD STANDARDS AGENCY - Westminster,FOOD STANDARDS AGENCY - Westminster,2018-07-20,EXP - PURCHASE OF GOODS/SERVICES - RAIL TRAVEL,Programme and project delivery,CORPORATE TRAVEL MANAGEMENT NORTH LTD,1011706613,511.4,TRAVEL EXPENSES WK 27,BD1 5HQ,ADMIN
FOOD STANDARDS AGENCY - Westminster,FOOD STANDARDS AGENCY - Westminster,2018-07-09,EXP - PURCHASE OF GOODS/SERVICES - SUBSISTENCE,Contaminants HoD,CORPORATE TRAVEL MANAGEMENT NORTH LTD,1011706509,510.52,TRAVEL EXPENSES WK 26,BD1 5HQ,ADMIN
FOOD STANDARDS AGENCY - Westminster,FOOD STANDARDS AGENCY - Westminster,2018-07-09,EXP - PURCHASE OF GOODS/SERVICES - SUBSISTENCE,Regulatory & International,CORPORATE TRAVEL MANAGEMENT NORTH LTD,1011706509,507.39,TRAVEL EXPENSES WK 26,BD1 5HQ,ADMIN
FOOD STANDARDS AGENCY - Westminster,FOOD STANDARDS AGENCY - Westminster,2018-07-09,EXP - PURCHASE OF GOODS/SERVICES - RAIL TRAVEL,East 2,CORPORATE TRAVEL MANAGEMENT NORTH LTD,1011706509,506.9,TRAVEL EXPENSES WK 26,BD1 5HQ,PROGRAMME
FOOD STANDARDS AGENCY - Westminster,FOOD STANDARDS AGENCY - Westminster,2018-07-09,EXP - PURCHASE OF GOODS/SERVICES - AIR TRAVEL,Regulating our Future,CORPORATE TRAVEL MANAGEMENT NORTH LTD,1011706509,504.08,TRAVEL EXPENSES WK 26,BD1 5HQ,ADMIN
FOOD STANDARDS AGENCY - Westminster,FOOD STANDARDS AGENCY - Westminster,2018-07-03,EXP - PURCHASE OF GOODS/SERVICES - SUBSISTENCE,Chair & Deputy Chair,CORPORATE TRAVEL MANAGEMENT NORTH LTD,1011706459,502.4,TRAVEL EXPENSES WK 25,BD1 5HQ,ADMIN
FOOD STANDARDS AGENCY - Westminster,FOOD STANDARDS AGENCY - Westminster,2018-07-24,EXP - PURCHASE OF GOODS/SERVICES - RAIL TRAVEL,East 3,CORPORATE TRAVEL MANAGEMENT NORTH LTD,1011706641,501.35,TRAVEL EXPENSES WK 28,BD1 5HQ,PROGRAMME
FOOD STANDARDS AGENCY - Westminster,FOOD STANDARDS AGENCY - Westminster,2018-07-24,EXP - PURCHASE OF GOODS/SERVICES - RAIL TRAVEL,IT Information & Knowledge Management,CORPORATE TRAVEL MANAGEMENT NORTH LTD,1011706641,494.7,TRAVEL EXPENSES WK 28,BD1 5HQ,ADMIN
FOOD STANDARDS AGENCY - Westminster,FOOD STANDARDS AGENCY - Westminster,2018-07-09,EXP - PURCHASE OF GOODS/SERVICES - RAIL TRAVEL,Programme and project delivery,CORPORATE TRAVEL MANAGEMENT NORTH LTD,1011706509,481,TRAVEL EXPENSES WK 26,BD1 5HQ,ADMIN
FOOD STANDARDS AGENCY - Westminster,FOOD STANDARDS AGENCY - Westminster,2018-07-03,EXP - PURCHASE OF GOODS/SERVICES - RAIL TRAVEL,Non Meat Field Ops,CORPORATE TRAVEL MANAGEMENT NORTH LTD,1011706459,474.8,TRAVEL EXPENSES WK 25,BD1 5HQ,PROGRAMME
FOOD STANDARDS AGENCY - Westminster,FOOD STANDARDS AGENCY - Westminster,2018-07-24,EXP - PURCHASE OF GOODS/SERVICES - SUBSISTENCE,Operational Delivery,CORPORATE TRAVEL MANAGEMENT NORTH LTD,1011706641,474.12,TRAVEL EXPENSES WK 28,BD1 5HQ,PROGRAMME
FOOD STANDARDS AGENCY - Westminster,FOOD STANDARDS AGENCY - Westminster,2018-07-03,EXP - PURCHASE OF GOODS/SERVICES - SUBSISTENCE,Food Incidents & Resilience - Prog,CORPORATE TRAVEL MANAGEMENT NORTH LTD,1011706459,465.3,TRAVEL EXPENSES WK 25,BD1 5HQ,PROGRAMME
FOOD STANDARDS AGENCY - Westminster,FOOD STANDARDS AGENCY - Westminster,2018-07-24,EXP - PURCHASE OF GOODS/SERVICES - SUBSISTENCE,Chief Executive & Private Office,CORPORATE TRAVEL MANAGEMENT NORTH LTD,1011706641,456.6,TRAVEL EXPENSES WK 28,BD1 5HQ,ADMIN
FOOD STANDARDS AGENCY - Westminster,FOOD STANDARDS AGENCY - Westminster,2018-07-24,EXP - PURCHASE OF GOODS/SERVICES - RAIL TRAVEL,Food Incidents & Resilience - Prog,CORPORATE TRAVEL MANAGEMENT NORTH LTD,1011706641,432.7,TRAVEL EXPENSES WK 28,BD1 5HQ,PROGRAMME
FOOD STANDARDS AGENCY - Westminster,FOOD STANDARDS AGENCY - Westminster,2018-07-03,EXP - PURCHASE OF GOODS/SERVICES - RAIL TRAVEL,Corporate Support Unit,CORPORATE TRAVEL MANAGEMENT NORTH LTD,1011706459,431.4,TRAVEL EXPENSES WK 25,BD1 5HQ,ADMIN
FOOD STANDARDS AGENCY - Westminster,FOOD STANDARDS AGENCY - Westminster,2018-07-02,EXP - PURCHASE OF GOODS/SERVICES - IT MANAGEMENT AND CHANGE - IT DEVELOPMENT,Digital,RAINMAKER SOLUTIONS LTD,1011706447,428.9,FINAL MILESTONE ,MK18 1HD,ADMIN
FOOD STANDARDS AGENCY - Westminster,FOOD STANDARDS AGENCY - Westminster,2018-07-24,EXP - PURCHASE OF GOODS/SERVICES - RAIL TRAVEL,Programme and project delivery,CORPORATE TRAVEL MANAGEMENT NORTH LTD,1011706641,428.5,TRAVEL EXPENSES WK 28,BD1 5HQ,ADMIN
FOOD STANDARDS AGENCY - Westminster,FOOD STANDARDS AGENCY - Westminster,2018-07-20,EXP - PURCHASE OF GOODS/SERVICES - RAIL TRAVEL,East 3,CORPORATE TRAVEL MANAGEMENT NORTH LTD,1011706613,427.3,TRAVEL EXPENSES WK 27,BD1 5HQ,PROGRAMME
FOOD STANDARDS AGENCY - Westminster,FOOD STANDARDS AGENCY - Westminster,2018-07-03,EXP - PURCHASE OF GOODS/SERVICES - AIR TRAVEL,Organisational Development,CORPORATE TRAVEL MANAGEMENT NORTH LTD,1011706459,425.3,TRAVEL EXPENSES WK 25,BD1 5HQ,ADMIN
FOOD STANDARDS AGENCY - Westminster,FOOD STANDARDS AGENCY - Westminster,2018-07-03,EXP - PURCHASE OF GOODS/SERVICES - FOREIGN SUBSISTENCE,Scientific Methods & Laboratory Policy,CORPORATE TRAVEL MANAGEMENT NORTH LTD,1011706459,420.07,TRAVEL EXPENSES WK 25,BD1 5HQ,ADMIN
FOOD STANDARDS AGENCY - Westminster,FOOD STANDARDS AGENCY - Westminster,2018-07-20,EXP - PURCHASE OF GOODS/SERVICES - AIR TRAVEL,Chief Executive & Private Office,CORPORATE TRAVEL MANAGEMENT NORTH LTD,1011706613,412.85,TRAVEL EXPENSES WK 27,BD1 5HQ,ADMIN
FOOD STANDARDS AGENCY - Westminster,FOOD STANDARDS AGENCY - Westminster,2018-07-03,EXP - PURCHASE OF GOODS/SERVICES - RAIL TRAVEL,Programme and project delivery,CORPORATE TRAVEL MANAGEMENT NORTH LTD,1011706459,412.3,TRAVEL EXPENSES WK 25,BD1 5HQ,ADMIN
FOOD STANDARDS AGENCY - Westminster,FOOD STANDARDS AGENCY - Westminster,2018-07-03,EXP - PURCHASE OF GOODS/SERVICES - AIR TRAVEL,Operations Assurance ,CORPORATE TRAVEL MANAGEMENT NORTH LTD,1011706459,407.92,TRAVEL EXPENSES WK 25,BD1 5HQ,PROGRAMME
FOOD STANDARDS AGENCY - Westminster,FOOD STANDARDS AGENCY - Westminster,2018-07-09,EXP - PURCHASE OF GOODS/SERVICES - AIR TRAVEL,Operations Assurance ,CORPORATE TRAVEL MANAGEMENT NORTH LTD,1011706509,406.66,TRAVEL EXPENSES WK 26,BD1 5HQ,PROGRAMME
FOOD STANDARDS AGENCY - Westminster,FOOD STANDARDS AGENCY - Westminster,2018-07-09,EXP - PURCHASE OF GOODS/SERVICES - SUBSISTENCE,Organisational Development,CORPORATE TRAVEL MANAGEMENT NORTH LTD,1011706509,403.4,TRAVEL EXPENSES WK 26,BD1 5HQ,ADMIN
FOOD STANDARDS AGENCY - Westminster,FOOD STANDARDS AGENCY - Westminster,2018-07-20,EXP - PURCHASE OF GOODS/SERVICES - RAIL TRAVEL,Wales and West 3 ,CORPORATE TRAVEL MANAGEMENT NORTH LTD,1011706613,399.2,TRAVEL EXPENSES WK 27,BD1 5HQ,PROGRAMME
FOOD STANDARDS AGENCY - Westminster,FOOD STANDARDS AGENCY - Westminster,2018-07-20,EXP - PURCHASE OF GOODS/SERVICES - SUBSISTENCE,Operations Local Delivery ,CORPORATE TRAVEL MANAGEMENT NORTH LTD,1011706613,395.75,TRAVEL EXPENSES WK 27,BD1 5HQ,ADMIN
FOOD STANDARDS AGENCY - Westminster,FOOD STANDARDS AGENCY - Westminster,2018-07-03,EXP - PURCHASE OF GOODS/SERVICES -  FOREIGN AIR TRAVEL,Contaminants HoD,CORPORATE TRAVEL MANAGEMENT NORTH LTD,1011706459,386,TRAVEL EXPENSES WK 25,BD1 5HQ,ADMIN
FOOD STANDARDS AGENCY - Westminster,FOOD STANDARDS AGENCY - Westminster,2018-07-20,EXP - PURCHASE OF GOODS/SERVICES - SUBSISTENCE,Chief Executive & Private Office,CORPORATE TRAVEL MANAGEMENT NORTH LTD,1011706613,377.6,TRAVEL EXPENSES WK 27,BD1 5HQ,ADMIN
FOOD STANDARDS AGENCY - Westminster,FOOD STANDARDS AGENCY - Westminster,2018-07-03,EXP - PURCHASE OF GOODS/SERVICES - SUBSISTENCE,Internal Audit,CORPORATE TRAVEL MANAGEMENT NORTH LTD,1011706459,374.05,TRAVEL EXPENSES WK 25,BD1 5HQ,ADMIN
FOOD STANDARDS AGENCY - Westminster,FOOD STANDARDS AGENCY - Westminster,2018-07-09,EXP - PURCHASE OF GOODS/SERVICES - SUBSISTENCE,Microbiological Food Safety Branch,CORPORATE TRAVEL MANAGEMENT NORTH LTD,1011706509,369.73,TRAVEL EXPENSES WK 26,BD1 5HQ,ADMIN
FOOD STANDARDS AGENCY - Westminster,FOOD STANDARDS AGENCY - Westminster,2018-07-20,EXP - PURCHASE OF GOODS/SERVICES - SUBSISTENCE,Additives,CORPORATE TRAVEL MANAGEMENT NORTH LTD,1011706613,368.32,TRAVEL EXPENSES WK 27,BD1 5HQ,ADMIN
FOOD STANDARDS AGENCY - Westminster,FOOD STANDARDS AGENCY - Westminster,2018-07-20,EXP - PURCHASE OF GOODS/SERVICES - SUBSISTENCE,Chemical Risk Assessment Unit,CORPORATE TRAVEL MANAGEMENT NORTH LTD,1011706613,361.8,TRAVEL EXPENSES WK 27,BD1 5HQ,ADMIN
FOOD STANDARDS AGENCY - Westminster,FOOD STANDARDS AGENCY - Westminster,2018-07-12,EXP - PURCHASE OF GOODS/SERVICES - OTHER ICT COSTS - COMPUTER SOFTWARE,IT Service Delivery,PHOENIX SOFTWARE LIMITED,1011706555,358.34,MICROSOFT,YO42 1NS,ADMIN
FOOD STANDARDS AGENCY - Westminster,FOOD STANDARDS AGENCY - Westminster,2018-07-03,EXP - PURCHASE OF GOODS/SERVICES - RAIL TRAVEL,Contaminants HoD,CORPORATE TRAVEL MANAGEMENT NORTH LTD,1011706459,353.6,TRAVEL EXPENSES WK 25,BD1 5HQ,ADMIN
FOOD STANDARDS AGENCY - Westminster,FOOD STANDARDS AGENCY - Westminster,2018-07-03,EXP - PURCHASE OF GOODS/SERVICES - SUBSISTENCE,Legal Branch A & Investigations,CORPORATE TRAVEL MANAGEMENT NORTH LTD,1011706459,347.04,TRAVEL EXPENSES WK 25,BD1 5HQ,ADMIN
FOOD STANDARDS AGENCY - Westminster,FOOD STANDARDS AGENCY - Westminster,2018-07-03,EXP - PURCHASE OF GOODS/SERVICES - SUBSISTENCE,Non Meat Field Ops,CORPORATE TRAVEL MANAGEMENT NORTH LTD,1011706459,346.14,TRAVEL EXPENSES WK 25,BD1 5HQ,PROGRAMME
FOOD STANDARDS AGENCY - Westminster,FOOD STANDARDS AGENCY - Westminster,2018-07-03,EXP - PURCHASE OF GOODS/SERVICES - RAIL TRAVEL,East 4,CORPORATE TRAVEL MANAGEMENT NORTH LTD,1011706459,344.4,TRAVEL EXPENSES WK 25,BD1 5HQ,PROGRAMME
FOOD STANDARDS AGENCY - Westminster,FOOD STANDARDS AGENCY - Westminster,2018-07-20,EXP - PURCHASE OF GOODS/SERVICES - AIR TRAVEL,Food Crime Unit - Prog,CORPORATE TRAVEL MANAGEMENT NORTH LTD,1011706613,344.11,TRAVEL EXPENSES WK 27,BD1 5HQ,PROGRAMME
FOOD STANDARDS AGENCY - Westminster,FOOD STANDARDS AGENCY - Westminster,2018-07-03,EXP - PURCHASE OF GOODS/SERVICES - SUBSISTENCE,Organisational Development,CORPORATE TRAVEL MANAGEMENT NORTH LTD,1011706459,339.25,TRAVEL EXPENSES WK 25,BD1 5HQ,ADMIN
FOOD STANDARDS AGENCY - Westminster,FOOD STANDARDS AGENCY - Westminster,2018-07-09,EXP - PURCHASE OF GOODS/SERVICES - RAIL TRAVEL,Regulatory & International,CORPORATE TRAVEL MANAGEMENT NORTH LTD,1011706509,338,TRAVEL EXPENSES WK 26,BD1 5HQ,ADMIN
FOOD STANDARDS AGENCY - Westminster,FOOD STANDARDS AGENCY - Westminster,2018-07-03,EXP - PURCHASE OF GOODS/SERVICES - RAIL TRAVEL,IT Information & Knowledge Management,CORPORATE TRAVEL MANAGEMENT NORTH LTD,1011706459,333.7,TRAVEL EXPENSES WK 25,BD1 5HQ,ADMIN
FOOD STANDARDS AGENCY - Westminster,FOOD STANDARDS AGENCY - Westminster,2018-07-20,EXP - PURCHASE OF GOODS/SERVICES - SUBSISTENCE,Corporate Support Unit,CORPORATE TRAVEL MANAGEMENT NORTH LTD,1011706613,333.04,TRAVEL EXPENSES WK 27,BD1 5HQ,ADMIN
FOOD STANDARDS AGENCY - Westminster,FOOD STANDARDS AGENCY - Westminster,2018-07-20,EXP - PURCHASE OF GOODS/SERVICES - SUBSISTENCE,Internal Audit,CORPORATE TRAVEL MANAGEMENT NORTH LTD,1011706613,327,TRAVEL EXPENSES WK 27,BD1 5HQ,ADMIN
FOOD STANDARDS AGENCY - Westminster,FOOD STANDARDS AGENCY - Westminster,2018-07-24,EXP - PURCHASE OF GOODS/SERVICES - SUBSISTENCE,IT Information & Knowledge Management,CORPORATE TRAVEL MANAGEMENT NORTH LTD,1011706641,325.05,TRAVEL EXPENSES WK 28,BD1 5HQ,ADMIN
FOOD STANDARDS AGENCY - Westminster,FOOD STANDARDS AGENCY - Westminster,2018-07-09,EXP - PURCHASE OF GOODS/SERVICES - RAIL TRAVEL,Food Incidents & Resilience - Prog,CORPORATE TRAVEL MANAGEMENT NORTH LTD,1011706509,321.7,TRAVEL EXPENSES WK 26,BD1 5HQ,PROGRAMME
FOOD STANDARDS AGENCY - Westminster,FOOD STANDARDS AGENCY - Westminster,2018-07-24,EXP - PURCHASE OF GOODS/SERVICES - RAIL TRAVEL,Wales and West 4 ,CORPORATE TRAVEL MANAGEMENT NORTH LTD,1011706641,321,TRAVEL EXPENSES WK 28,BD1 5HQ,PROGRAMME
FOOD STANDARDS AGENCY - Westminster,FOOD STANDARDS AGENCY - Westminster,2018-07-24,EXP - PURCHASE OF GOODS/SERVICES - RAIL TRAVEL,North 1,CORPORATE TRAVEL MANAGEMENT NORTH LTD,1011706641,316.35,TRAVEL EXPENSES WK 28,BD1 5HQ,PROGRAMME
FOOD STANDARDS AGENCY - Westminster,FOOD STANDARDS AGENCY - Westminster,2018-07-09,EXP - PURCHASE OF GOODS/SERVICES - SUBSISTENCE,Comms Directors Office,CORPORATE TRAVEL MANAGEMENT NORTH LTD,1011706509,311.5,TRAVEL EXPENSES WK 26,BD1 5HQ,ADMIN
FOOD STANDARDS AGENCY - Westminster,FOOD STANDARDS AGENCY - Westminster,2018-07-03,EXP - PURCHASE OF GOODS/SERVICES - RAIL TRAVEL,Planning and Performance,CORPORATE TRAVEL MANAGEMENT NORTH LTD,1011706459,309.8,TRAVEL EXPENSES WK 25,BD1 5HQ,ADMIN
FOOD STANDARDS AGENCY - Westminster,FOOD STANDARDS AGENCY - Westminster,2018-07-09,EXP - PURCHASE OF GOODS/SERVICES - AIR TRAVEL,Security & Estates,CORPORATE TRAVEL MANAGEMENT NORTH LTD,1011706509,308.95,TRAVEL EXPENSES WK 26,BD1 5HQ,ADMIN
FOOD STANDARDS AGENCY - Westminster,FOOD STANDARDS AGENCY - Westminster,2018-07-09,EXP - PURCHASE OF GOODS/SERVICES - RAIL TRAVEL,Digital,CORPORATE TRAVEL MANAGEMENT NORTH LTD,1011706509,308.25,TRAVEL EXPENSES WK 26,BD1 5HQ,ADMIN
FOOD STANDARDS AGENCY - Westminster,FOOD STANDARDS AGENCY - Westminster,2018-07-09,EXP - PURCHASE OF GOODS/SERVICES - RAIL TRAVEL,IT Service Delivery,CORPORATE TRAVEL MANAGEMENT NORTH LTD,1011706509,306.3,TRAVEL EXPENSES WK 26,BD1 5HQ,ADMIN
FOOD STANDARDS AGENCY - Westminster,FOOD STANDARDS AGENCY - Westminster,2018-07-09,EXP - PURCHASE OF GOODS/SERVICES - FOREIGN SUBSISTENCE,Legal Branch A & Investigations,CORPORATE TRAVEL MANAGEMENT NORTH LTD,1011706509,301.19,TRAVEL EXPENSES WK 26,BD1 5HQ,ADMIN
FOOD STANDARDS AGENCY - Westminster,FOOD STANDARDS AGENCY - Westminster,2018-07-03,EXP - PURCHASE OF GOODS/SERVICES - AIR TRAVEL,Operations Local Delivery ,CORPORATE TRAVEL MANAGEMENT NORTH LTD,1011706459,296.92,TRAVEL EXPENSES WK 25,BD1 5HQ,ADMIN
FOOD STANDARDS AGENCY - Westminster,FOOD STANDARDS AGENCY - Westminster,2018-07-20,EXP - PURCHASE OF GOODS/SERVICES - RAIL TRAVEL,Corporate Support Unit,CORPORATE TRAVEL MANAGEMENT NORTH LTD,1011706613,296,TRAVEL EXPENSES WK 27,BD1 5HQ,ADMIN
FOOD STANDARDS AGENCY - Westminster,FOOD STANDARDS AGENCY - Westminster,2018-07-09,EXP - PURCHASE OF GOODS/SERVICES - SUBSISTENCE,Non Meat Field Ops,CORPORATE TRAVEL MANAGEMENT NORTH LTD,1011706509,294.42,TRAVEL EXPENSES WK 26,BD1 5HQ,PROGRAMME
FOOD STANDARDS AGENCY - Westminster,FOOD STANDARDS AGENCY - Westminster,2018-07-09,EXP - PURCHASE OF GOODS/SERVICES - RAIL TRAVEL,Non Meat Field Ops,CORPORATE TRAVEL MANAGEMENT NORTH LTD,1011706509,292.35,TRAVEL EXPENSES WK 26,BD1 5HQ,PROGRAMME
FOOD STANDARDS AGENCY - Westminster,FOOD STANDARDS AGENCY - Westminster,2018-07-09,EXP - PURCHASE OF GOODS/SERVICES - RAIL TRAVEL,Procurement,CORPORATE TRAVEL MANAGEMENT NORTH LTD,1011706509,291.2,TRAVEL EXPENSES WK 26,BD1 5HQ,ADMIN
FOOD STANDARDS AGENCY - Westminster,FOOD STANDARDS AGENCY - Westminster,2018-07-24,EXP - PURCHASE OF GOODS/SERVICES - RAIL TRAVEL,East 4,CORPORATE TRAVEL MANAGEMENT NORTH LTD,1011706641,288.4,TRAVEL EXPENSES WK 28,BD1 5HQ,PROGRAMME
FOOD STANDARDS AGENCY - Westminster,FOOD STANDARDS AGENCY - Westminster,2018-07-24,EXP - PURCHASE OF GOODS/SERVICES - RAIL TRAVEL,Contaminants HoD,CORPORATE TRAVEL MANAGEMENT NORTH LTD,1011706641,281.3,TRAVEL EXPENSES WK 28,BD1 5HQ,ADMIN
FOOD STANDARDS AGENCY - Westminster,FOOD STANDARDS AGENCY - Westminster,2018-07-20,EXP - PURCHASE OF GOODS/SERVICES - AIR TRAVEL,Contaminants HoD,CORPORATE TRAVEL MANAGEMENT NORTH LTD,1011706613,268.64,TRAVEL EXPENSES WK 27,BD1 5HQ,ADMIN
FOOD STANDARDS AGENCY - Westminster,FOOD STANDARDS AGENCY - Westminster,2018-07-20,EXP - PURCHASE OF GOODS/SERVICES - AIR TRAVEL,Comms Directors Office,CORPORATE TRAVEL MANAGEMENT NORTH LTD,1011706613,267.95,TRAVEL EXPENSES WK 27,BD1 5HQ,ADMIN
FOOD STANDARDS AGENCY - Westminster,FOOD STANDARDS AGENCY - Westminster,2018-07-20,EXP - PURCHASE OF GOODS/SERVICES - AIR TRAVEL,Regulating our Future,CORPORATE TRAVEL MANAGEMENT NORTH LTD,1011706613,266.13,TRAVEL EXPENSES WK 27,BD1 5HQ,ADMIN
FOOD STANDARDS AGENCY - Westminster,FOOD STANDARDS AGENCY - Westminster,2018-07-20,EXP - PURCHASE OF GOODS/SERVICES - RAIL TRAVEL,Regulatory & International,CORPORATE TRAVEL MANAGEMENT NORTH LTD,1011706613,264,TRAVEL EXPENSES WK 27,BD1 5HQ,ADMIN
FOOD STANDARDS AGENCY - Westminster,FOOD STANDARDS AGENCY - Westminster,2018-07-03,EXP - PURCHASE OF GOODS/SERVICES - SUBSISTENCE,Planning and Performance,CORPORATE TRAVEL MANAGEMENT NORTH LTD,1011706459,263.7,TRAVEL EXPENSES WK 25,BD1 5HQ,ADMIN
FOOD STANDARDS AGENCY - Westminster,FOOD STANDARDS AGENCY - Westminster,2018-07-24,EXP - PURCHASE OF GOODS/SERVICES - RAIL TRAVEL,Wales and West 2 (Wales),CORPORATE TRAVEL MANAGEMENT NORTH LTD,1011706641,261,TRAVEL EXPENSES WK 28,BD1 5HQ,PROGRAMME
FOOD STANDARDS AGENCY - Westminster,FOOD STANDARDS AGENCY - Westminster,2018-07-20,EXP - PURCHASE OF GOODS/SERVICES - RAIL TRAVEL,Chief Executive & Private Office,CORPORATE TRAVEL MANAGEMENT NORTH LTD,1011706613,260.65,TRAVEL EXPENSES WK 27,BD1 5HQ,ADMIN
FOOD STANDARDS AGENCY - Westminster,FOOD STANDARDS AGENCY - Westminster,2018-07-03,EXP - PURCHASE OF GOODS/SERVICES - SUBSISTENCE,Digital,CORPORATE TRAVEL MANAGEMENT NORTH LTD,1011706459,260.6,TRAVEL EXPENSES WK 25,BD1 5HQ,ADMIN
FOOD STANDARDS AGENCY - Westminster,FOOD STANDARDS AGENCY - Westminster,2018-07-09,EXP - PURCHASE OF GOODS/SERVICES - SUBSISTENCE,Digital,CORPORATE TRAVEL MANAGEMENT NORTH LTD,1011706509,260.6,TRAVEL EXPENSES WK 26,BD1 5HQ,ADMIN
FOOD STANDARDS AGENCY - Westminster,FOOD STANDARDS AGENCY - Westminster,2018-07-09,EXP - PURCHASE OF GOODS/SERVICES - SUBSISTENCE,Operational Delivery,CORPORATE TRAVEL MANAGEMENT NORTH LTD,1011706509,259.5,TRAVEL EXPENSES WK 26,BD1 5HQ,PROGRAMME
FOOD STANDARDS AGENCY - Westminster,FOOD STANDARDS AGENCY - Westminster,2018-07-09,EXP - PURCHASE OF GOODS/SERVICES - AIR TRAVEL,EU Regulatory Reform Branch,CORPORATE TRAVEL MANAGEMENT NORTH LTD,1011706509,258,TRAVEL EXPENSES WK 26,BD1 5HQ,ADMIN
FOOD STANDARDS AGENCY - Westminster,FOOD STANDARDS AGENCY - Westminster,2018-07-24,EXP - PURCHASE OF GOODS/SERVICES - RAIL TRAVEL,Legal Branch A & Investigations,CORPORATE TRAVEL MANAGEMENT NORTH LTD,1011706641,257.3,TRAVEL EXPENSES WK 28,BD1 5HQ,ADMIN
FOOD STANDARDS AGENCY - Westminster,FOOD STANDARDS AGENCY - Westminster,2018-07-03,EXP - PURCHASE OF GOODS/SERVICES - RAIL TRAVEL,Food Hygiene Policy Branch,CORPORATE TRAVEL MANAGEMENT NORTH LTD,1011706459,254,TRAVEL EXPENSES WK 25,BD1 5HQ,ADMIN
FOOD STANDARDS AGENCY - Westminster,FOOD STANDARDS AGENCY - Westminster,2018-07-03,EXP - PURCHASE OF GOODS/SERVICES - RAIL TRAVEL,Allergens,CORPORATE TRAVEL MANAGEMENT NORTH LTD,1011706459,252.5,TRAVEL EXPENSES WK 25,BD1 5HQ,ADMIN
FOOD STANDARDS AGENCY - Westminster,FOOD STANDARDS AGENCY - Westminster,2018-07-03,EXP - PURCHASE OF GOODS/SERVICES - SUBSISTENCE,Wales and West 4 ,CORPORATE TRAVEL MANAGEMENT NORTH LTD,1011706459,252.2,TRAVEL EXPENSES WK 25,BD1 5HQ,PROGRAMME
FOOD STANDARDS AGENCY - Westminster,FOOD STANDARDS AGENCY - Westminster,2018-07-24,EXP - PURCHASE OF GOODS/SERVICES - SUBSISTENCE,Regulating our Future,CORPORATE TRAVEL MANAGEMENT NORTH LTD,1011706641,250.95,TRAVEL EXPENSES WK 28,BD1 5HQ,ADMIN
FOOD STANDARDS AGENCY - Westminster,FOOD STANDARDS AGENCY - Westminster,2018-07-20,EXP - PURCHASE OF GOODS/SERVICES - AIR TRAVEL,Additives,CORPORATE TRAVEL MANAGEMENT NORTH LTD,1011706613,250.83,TRAVEL EXPENSES WK 27,BD1 5HQ,ADMIN
FOOD STANDARDS AGENCY - Westminster,FOOD STANDARDS AGENCY - Westminster,2018-07-03,EXP - PURCHASE OF GOODS/SERVICES - SUBSISTENCE,Corporate Support Unit,CORPORATE TRAVEL MANAGEMENT NORTH LTD,1011706459,250.6,TRAVEL EXPENSES WK 25,BD1 5HQ,ADMIN
FOOD STANDARDS AGENCY - Westminster,FOOD STANDARDS AGENCY - Westminster,2018-07-03,EXP - PURCHASE OF GOODS/SERVICES - FOREIGN SUBSISTENCE,Contaminants HoD,CORPORATE TRAVEL MANAGEMENT NORTH LTD,1011706459,248.71,TRAVEL EXPENSES WK 25,BD1 5HQ,ADMIN
FOOD STANDARDS AGENCY - Westminster,FOOD STANDARDS AGENCY - Westminster,2018-07-20,EXP - PURCHASE OF GOODS/SERVICES - SUBSISTENCE,Regulatory & International,CORPORATE TRAVEL MANAGEMENT NORTH LTD,1011706613,239.8,TRAVEL EXPENSES WK 27,BD1 5HQ,ADMIN
FOOD STANDARDS AGENCY - Westminster,FOOD STANDARDS AGENCY - Westminster,2018-07-09,EXP - PURCHASE OF GOODS/SERVICES - SUBSISTENCE,Finance Director & Branch,CORPORATE TRAVEL MANAGEMENT NORTH LTD,1011706509,238.14,TRAVEL EXPENSES WK 26,BD1 5HQ,ADMIN
FOOD STANDARDS AGENCY - Westminster,FOOD STANDARDS AGENCY - Westminster,2018-07-20,EXP - PURCHASE OF GOODS/SERVICES - SUBSISTENCE,Regulating our Future,CORPORATE TRAVEL MANAGEMENT NORTH LTD,1011706613,233.15,TRAVEL EXPENSES WK 27,BD1 5HQ,ADMIN
FOOD STANDARDS AGENCY - Westminster,FOOD STANDARDS AGENCY - Westminster,2018-07-09,EXP - PURCHASE OF GOODS/SERVICES - RAIL TRAVEL,Finance Director & Branch,CORPORATE TRAVEL MANAGEMENT NORTH LTD,1011706509,233,TRAVEL EXPENSES WK 26,BD1 5HQ,ADMIN
FOOD STANDARDS AGENCY - Westminster,FOOD STANDARDS AGENCY - Westminster,2018-07-20,EXP - PURCHASE OF GOODS/SERVICES - RAIL TRAVEL,Contaminants HoD,CORPORATE TRAVEL MANAGEMENT NORTH LTD,1011706613,230.85,TRAVEL EXPENSES WK 27,BD1 5HQ,ADMIN
FOOD STANDARDS AGENCY - Westminster,FOOD STANDARDS AGENCY - Westminster,2018-07-03,EXP - PURCHASE OF GOODS/SERVICES - AIR TRAVEL,Regulatory & International,CORPORATE TRAVEL MANAGEMENT NORTH LTD,1011706459,227,TRAVEL EXPENSES WK 25,BD1 5HQ,ADMIN
FOOD STANDARDS AGENCY - Westminster,FOOD STANDARDS AGENCY - Westminster,2018-07-24,EXP - PURCHASE OF GOODS/SERVICES - SUBSISTENCE,Programme and project delivery,CORPORATE TRAVEL MANAGEMENT NORTH LTD,1011706641,226.63,TRAVEL EXPENSES WK 28,BD1 5HQ,ADMIN
FOOD STANDARDS AGENCY - Westminster,FOOD STANDARDS AGENCY - Westminster,2018-07-09,EXP - PURCHASE OF GOODS/SERVICES - AIR TRAVEL,Analysis & Research Branch,CORPORATE TRAVEL MANAGEMENT NORTH LTD,1011706509,226.54,TRAVEL EXPENSES WK 26,BD1 5HQ,ADMIN
FOOD STANDARDS AGENCY - Westminster,FOOD STANDARDS AGENCY - Westminster,2018-07-03,EXP - PURCHASE OF GOODS/SERVICES - RAIL TRAVEL,Food Crime Unit - Admin,CORPORATE TRAVEL MANAGEMENT NORTH LTD,1011706459,225.06,TRAVEL EXPENSES WK 25,BD1 5HQ,ADMIN
FOOD STANDARDS AGENCY - Westminster,FOOD STANDARDS AGENCY - Westminster,2018-07-03,EXP - PURCHASE OF GOODS/SERVICES - RAIL TRAVEL,Regulatory & International,CORPORATE TRAVEL MANAGEMENT NORTH LTD,1011706459,224.5,TRAVEL EXPENSES WK 25,BD1 5HQ,ADMIN
FOOD STANDARDS AGENCY - Westminster,FOOD STANDARDS AGENCY - Westminster,2018-07-03,EXP - PURCHASE OF GOODS/SERVICES - RAIL TRAVEL,EU Regulatory Reform Branch,CORPORATE TRAVEL MANAGEMENT NORTH LTD,1011706459,221.1,TRAVEL EXPENSES WK 25,BD1 5HQ,ADMIN
FOOD STANDARDS AGENCY - Westminster,FOOD STANDARDS AGENCY - Westminster,2018-07-24,EXP - PURCHASE OF GOODS/SERVICES - RAIL TRAVEL,Finance Director & Branch,CORPORATE TRAVEL MANAGEMENT NORTH LTD,1011706641,217.4,TRAVEL EXPENSES WK 28,BD1 5HQ,ADMIN
FOOD STANDARDS AGENCY - Westminster,FOOD STANDARDS AGENCY - Westminster,2018-07-09,EXP - PURCHASE OF GOODS/SERVICES - RAIL TRAVEL,North 1,CORPORATE TRAVEL MANAGEMENT NORTH LTD,1011706509,216.3,TRAVEL EXPENSES WK 26,BD1 5HQ,PROGRAMME
FOOD STANDARDS AGENCY - Westminster,FOOD STANDARDS AGENCY - Westminster,2018-07-03,EXP - PURCHASE OF GOODS/SERVICES - RAIL TRAVEL,Chief Scientist,CORPORATE TRAVEL MANAGEMENT NORTH LTD,1011706459,213.4,TRAVEL EXPENSES WK 25,BD1 5HQ,ADMIN
FOOD STANDARDS AGENCY - Westminster,FOOD STANDARDS AGENCY - Westminster,2018-07-20,EXP - PURCHASE OF GOODS/SERVICES - AIR TRAVEL,Operational Delivery,CORPORATE TRAVEL MANAGEMENT NORTH LTD,1011706613,213.02,TRAVEL EXPENSES WK 27,BD1 5HQ,PROGRAMME
FOOD STANDARDS AGENCY - Westminster,FOOD STANDARDS AGENCY - Westminster,2018-07-24,EXP - PURCHASE OF GOODS/SERVICES - RAIL TRAVEL,East 2,CORPORATE TRAVEL MANAGEMENT NORTH LTD,1011706641,212,TRAVEL EXPENSES WK 28,BD1 5HQ,PROGRAMME
FOOD STANDARDS AGENCY - Westminster,FOOD STANDARDS AGENCY - Westminster,2018-07-03,EXP - PURCHASE OF GOODS/SERVICES - RAIL TRAVEL,East 3,CORPORATE TRAVEL MANAGEMENT NORTH LTD,1011706459,211.8,TRAVEL EXPENSES WK 25,BD1 5HQ,PROGRAMME
FOOD STANDARDS AGENCY - Westminster,FOOD STANDARDS AGENCY - Westminster,2018-07-03,EXP - PURCHASE OF GOODS/SERVICES - AIR TRAVEL,Analysis & Research Branch,CORPORATE TRAVEL MANAGEMENT NORTH LTD,1011706459,210.76,TRAVEL EXPENSES WK 25,BD1 5HQ,ADMIN
FOOD STANDARDS AGENCY - Westminster,FOOD STANDARDS AGENCY - Westminster,2018-07-09,EXP - PURCHASE OF GOODS/SERVICES - RAIL TRAVEL,Chemical Risk Assessment Unit,CORPORATE TRAVEL MANAGEMENT NORTH LTD,1011706509,209.5,TRAVEL EXPENSES WK 26,BD1 5HQ,ADMIN
FOOD STANDARDS AGENCY - Westminster,FOOD STANDARDS AGENCY - Westminster,2018-07-09,EXP - PURCHASE OF GOODS/SERVICES - AIR TRAVEL,Food Crime Unit - Prog,CORPORATE TRAVEL MANAGEMENT NORTH LTD,1011706509,209.3,TRAVEL EXPENSES WK 26,BD1 5HQ,PROGRAMME
FOOD STANDARDS AGENCY - Westminster,FOOD STANDARDS AGENCY - Westminster,2018-07-09,EXP - PURCHASE OF GOODS/SERVICES - RAIL TRAVEL,Imports & Exports Team (Admin),CORPORATE TRAVEL MANAGEMENT NORTH LTD,1011706509,209.3,TRAVEL EXPENSES WK 26,BD1 5HQ,ADMIN
FOOD STANDARDS AGENCY - Westminster,FOOD STANDARDS AGENCY - Westminster,2018-07-03,EXP - PURCHASE OF GOODS/SERVICES - SUBSISTENCE,IT Information & Knowledge Management,CORPORATE TRAVEL MANAGEMENT NORTH LTD,1011706459,206,TRAVEL EXPENSES WK 25,BD1 5HQ,ADMIN
FOOD STANDARDS AGENCY - Westminster,FOOD STANDARDS AGENCY - Westminster,2018-07-20,EXP - PURCHASE OF GOODS/SERVICES - SUBSISTENCE,Legal Branch A & Investigations,CORPORATE TRAVEL MANAGEMENT NORTH LTD,1011706613,205.88,TRAVEL EXPENSES WK 27,BD1 5HQ,ADMIN
FOOD STANDARDS AGENCY - Westminster,FOOD STANDARDS AGENCY - Westminster,2018-07-24,EXP - PURCHASE OF GOODS/SERVICES - RAIL TRAVEL,Chief Executive & Private Office,CORPORATE TRAVEL MANAGEMENT NORTH LTD,1011706641,204,TRAVEL EXPENSES WK 28,BD1 5HQ,ADMIN
FOOD STANDARDS AGENCY - Westminster,FOOD STANDARDS AGENCY - Westminster,2018-07-03,EXP - PURCHASE OF GOODS/SERVICES - AIR TRAVEL,Internal Audit,CORPORATE TRAVEL MANAGEMENT NORTH LTD,1011706459,203.81,TRAVEL EXPENSES WK 25,BD1 5HQ,ADMIN
FOOD STANDARDS AGENCY - Westminster,FOOD STANDARDS AGENCY - Westminster,2018-07-09,EXP - PURCHASE OF GOODS/SERVICES - FOREIGN SUBSISTENCE,Microbiological Food Safety Branch,CORPORATE TRAVEL MANAGEMENT NORTH LTD,1011706509,203.75,TRAVEL EXPENSES WK 26,BD1 5HQ,ADMIN
FOOD STANDARDS AGENCY - Westminster,FOOD STANDARDS AGENCY - Westminster,2018-07-24,EXP - PURCHASE OF GOODS/SERVICES - RAIL TRAVEL,Imports & Exports Team (Admin),CORPORATE TRAVEL MANAGEMENT NORTH LTD,1011706641,201.7,TRAVEL EXPENSES WK 28,BD1 5HQ,ADMIN
FOOD STANDARDS AGENCY - Westminster,FOOD STANDARDS AGENCY - Westminster,2018-07-03,EXP - PURCHASE OF GOODS/SERVICES -  FOREIGN AIR TRAVEL,Animal Feed Branch,CORPORATE TRAVEL MANAGEMENT NORTH LTD,1011706459,195.16,TRAVEL EXPENSES WK 25,BD1 5HQ,ADMIN
FOOD STANDARDS AGENCY - Westminster,FOOD STANDARDS AGENCY - Westminster,2018-07-20,EXP - PURCHASE OF GOODS/SERVICES - RAIL TRAVEL,Resilience - Admin,CORPORATE TRAVEL MANAGEMENT NORTH LTD,1011706613,193,TRAVEL EXPENSES WK 27,BD1 5HQ,ADMIN
FOOD STANDARDS AGENCY - Westminster,FOOD STANDARDS AGENCY - Westminster,2018-07-20,EXP - PURCHASE OF GOODS/SERVICES - RAIL TRAVEL,Finance Director & Branch,CORPORATE TRAVEL MANAGEMENT NORTH LTD,1011706613,191.6,TRAVEL EXPENSES WK 27,BD1 5HQ,ADMIN
FOOD STANDARDS AGENCY - Westminster,FOOD STANDARDS AGENCY - Westminster,2018-07-20,EXP - PURCHASE OF GOODS/SERVICES - SUBSISTENCE,Non Meat Field Ops,CORPORATE TRAVEL MANAGEMENT NORTH LTD,1011706613,188.9,TRAVEL EXPENSES WK 27,BD1 5HQ,PROGRAMME
FOOD STANDARDS AGENCY - Westminster,FOOD STANDARDS AGENCY - Westminster,2018-07-03,EXP - PURCHASE OF GOODS/SERVICES - FOREIGN SUBSISTENCE,Contaminants Policy & Strategy Unit,CORPORATE TRAVEL MANAGEMENT NORTH LTD,1011706459,184.94,TRAVEL EXPENSES WK 25,BD1 5HQ,ADMIN
FOOD STANDARDS AGENCY - Westminster,FOOD STANDARDS AGENCY - Westminster,2018-07-09,EXP - PURCHASE OF GOODS/SERVICES - AIR TRAVEL,Digital,CORPORATE TRAVEL MANAGEMENT NORTH LTD,1011706509,184.46,TRAVEL EXPENSES WK 26,BD1 5HQ,ADMIN
FOOD STANDARDS AGENCY - Westminster,FOOD STANDARDS AGENCY - Westminster,2018-07-09,EXP - PURCHASE OF GOODS/SERVICES - RAIL TRAVEL,Food Production Branch,CORPORATE TRAVEL MANAGEMENT NORTH LTD,1011706509,183,TRAVEL EXPENSES WK 26,BD1 5HQ,ADMIN
FOOD STANDARDS AGENCY - Westminster,FOOD STANDARDS AGENCY - Westminster,2018-07-09,EXP - PURCHASE OF GOODS/SERVICES - AIR TRAVEL,Comms Directors Office,CORPORATE TRAVEL MANAGEMENT NORTH LTD,1011706509,181.13,TRAVEL EXPENSES WK 26,BD1 5HQ,ADMIN
FOOD STANDARDS AGENCY - Westminster,FOOD STANDARDS AGENCY - Westminster,2018-07-24,EXP - PURCHASE OF GOODS/SERVICES - RAIL TRAVEL,North 2,CORPORATE TRAVEL MANAGEMENT NORTH LTD,1011706641,179.65,TRAVEL EXPENSES WK 28,BD1 5HQ,PROGRAMME
FOOD STANDARDS AGENCY - Westminster,FOOD STANDARDS AGENCY - Westminster,2018-07-20,EXP - PURCHASE OF GOODS/SERVICES - SUBSISTENCE,Wales and West 4 ,CORPORATE TRAVEL MANAGEMENT NORTH LTD,1011706613,178.96,TRAVEL EXPENSES WK 27,BD1 5HQ,PROGRAMME
FOOD STANDARDS AGENCY - Westminster,FOOD STANDARDS AGENCY - Westminster,2018-07-20,EXP - PURCHASE OF GOODS/SERVICES - SUBSISTENCE,IT Information & Knowledge Management,CORPORATE TRAVEL MANAGEMENT NORTH LTD,1011706613,178.6,TRAVEL EXPENSES WK 27,BD1 5HQ,ADMIN
FOOD STANDARDS AGENCY - Westminster,FOOD STANDARDS AGENCY - Westminster,2018-07-09,EXP - PURCHASE OF GOODS/SERVICES - SUBSISTENCE,Animal Feed Branch,CORPORATE TRAVEL MANAGEMENT NORTH LTD,1011706509,178.4,TRAVEL EXPENSES WK 26,BD1 5HQ,ADMIN
FOOD STANDARDS AGENCY - Westminster,FOOD STANDARDS AGENCY - Westminster,2018-07-09,EXP - PURCHASE OF GOODS/SERVICES -  FOREIGN AIR TRAVEL,Additives,CORPORATE TRAVEL MANAGEMENT NORTH LTD,1011706509,178,TRAVEL EXPENSES WK 26,BD1 5HQ,ADMIN
FOOD STANDARDS AGENCY - Westminster,FOOD STANDARDS AGENCY - Westminster,2018-07-09,EXP - PURCHASE OF GOODS/SERVICES -  FOREIGN AIR TRAVEL,Contaminants HoD,CORPORATE TRAVEL MANAGEMENT NORTH LTD,1011706509,178,TRAVEL EXPENSES WK 26,BD1 5HQ,ADMIN
FOOD STANDARDS AGENCY - Westminster,FOOD STANDARDS AGENCY - Westminster,2018-07-09,EXP - PURCHASE OF GOODS/SERVICES -  FOREIGN AIR TRAVEL,Contaminants Policy & Strategy Unit,CORPORATE TRAVEL MANAGEMENT NORTH LTD,1011706509,178,TRAVEL EXPENSES WK 26,BD1 5HQ,ADMIN
FOOD STANDARDS AGENCY - Westminster,FOOD STANDARDS AGENCY - Westminster,2018-07-09,EXP - PURCHASE OF GOODS/SERVICES -  FOREIGN AIR TRAVEL,Animal Feed Branch,CORPORATE TRAVEL MANAGEMENT NORTH LTD,1011706509,177.8,TRAVEL EXPENSES WK 26,BD1 5HQ,ADMIN
FOOD STANDARDS AGENCY - Westminster,FOOD STANDARDS AGENCY - Westminster,2018-07-24,EXP - PURCHASE OF GOODS/SERVICES - RAIL TRAVEL,Wales and West 3 ,CORPORATE TRAVEL MANAGEMENT NORTH LTD,1011706641,175.8,TRAVEL EXPENSES WK 28,BD1 5HQ,PROGRAMME
FOOD STANDARDS AGENCY - Westminster,FOOD STANDARDS AGENCY - Westminster,2018-07-24,EXP - PURCHASE OF GOODS/SERVICES - TAXI SERVICES,Operations Local Delivery ,CORPORATE TRAVEL MANAGEMENT NORTH LTD,1011706641,175.68,TRAVEL EXPENSES WK 28,BD1 5HQ,ADMIN
FOOD STANDARDS AGENCY - Westminster,FOOD STANDARDS AGENCY - Westminster,2018-07-20,EXP - PURCHASE OF GOODS/SERVICES - RAIL TRAVEL,Food Crime Unit - Admin,CORPORATE TRAVEL MANAGEMENT NORTH LTD,1011706613,175.5,TRAVEL EXPENSES WK 27,BD1 5HQ,ADMIN
FOOD STANDARDS AGENCY - Westminster,FOOD STANDARDS AGENCY - Westminster,2018-07-09,EXP - PURCHASE OF GOODS/SERVICES - SUBSISTENCE,Chief Executive & Private Office,CORPORATE TRAVEL MANAGEMENT NORTH LTD,1011706509,172.6,TRAVEL EXPENSES WK 26,BD1 5HQ,ADMIN
FOOD STANDARDS AGENCY - Westminster,FOOD STANDARDS AGENCY - Westminster,2018-07-20,EXP - PURCHASE OF GOODS/SERVICES - RAIL TRAVEL,East 1,CORPORATE TRAVEL MANAGEMENT NORTH LTD,1011706613,171.7,TRAVEL EXPENSES WK 27,BD1 5HQ,PROGRAMME
FOOD STANDARDS AGENCY - Westminster,FOOD STANDARDS AGENCY - Westminster,2018-07-09,EXP - PURCHASE OF GOODS/SERVICES - RAIL TRAVEL,Chief Scientist,CORPORATE TRAVEL MANAGEMENT NORTH LTD,1011706509,170.8,TRAVEL EXPENSES WK 26,BD1 5HQ,ADMIN
FOOD STANDARDS AGENCY - Westminster,FOOD STANDARDS AGENCY - Westminster,2018-07-03,EXP - PURCHASE OF GOODS/SERVICES - AIR TRAVEL,Contaminants HoD,CORPORATE TRAVEL MANAGEMENT NORTH LTD,1011706459,168,TRAVEL EXPENSES WK 25,BD1 5HQ,ADMIN
FOOD STANDARDS AGENCY - Westminster,FOOD STANDARDS AGENCY - Westminster,2018-07-09,EXP - PURCHASE OF GOODS/SERVICES - AIR TRAVEL,Regulatory & International,CORPORATE TRAVEL MANAGEMENT NORTH LTD,1011706509,168,TRAVEL EXPENSES WK 26,BD1 5HQ,ADMIN
FOOD STANDARDS AGENCY - Westminster,FOOD STANDARDS AGENCY - Westminster,2018-07-24,EXP - PURCHASE OF GOODS/SERVICES - SUBSISTENCE,Organisational Development,CORPORATE TRAVEL MANAGEMENT NORTH LTD,1011706641,167.72,TRAVEL EXPENSES WK 28,BD1 5HQ,ADMIN
FOOD STANDARDS AGENCY - Westminster,FOOD STANDARDS AGENCY - Westminster,2018-07-20,EXP - PURCHASE OF GOODS/SERVICES - RAIL TRAVEL,North 1,CORPORATE TRAVEL MANAGEMENT NORTH LTD,1011706613,166.15,TRAVEL EXPENSES WK 27,BD1 5HQ,PROGRAMME
FOOD STANDARDS AGENCY - Westminster,FOOD STANDARDS AGENCY - Westminster,2018-07-20,EXP - PURCHASE OF GOODS/SERVICES - RAIL TRAVEL,Internal Audit,CORPORATE TRAVEL MANAGEMENT NORTH LTD,1011706613,164.85,TRAVEL EXPENSES WK 27,BD1 5HQ,ADMIN
FOOD STANDARDS AGENCY - Westminster,FOOD STANDARDS AGENCY - Westminster,2018-07-09,EXP - PURCHASE OF GOODS/SERVICES - SUBSISTENCE,Food Crime Unit - Prog,CORPORATE TRAVEL MANAGEMENT NORTH LTD,1011706509,162.79,TRAVEL EXPENSES WK 26,BD1 5HQ,PROGRAMME
FOOD STANDARDS AGENCY - Westminster,FOOD STANDARDS AGENCY - Westminster,2018-07-20,EXP - PURCHASE OF GOODS/SERVICES - RAIL TRAVEL,Wales and West 4 ,CORPORATE TRAVEL MANAGEMENT NORTH LTD,1011706613,162.76,TRAVEL EXPENSES WK 27,BD1 5HQ,PROGRAMME
FOOD STANDARDS AGENCY - Westminster,FOOD STANDARDS AGENCY - Westminster,2018-07-09,EXP - PURCHASE OF GOODS/SERVICES - RAIL TRAVEL,EU Regulatory Reform Branch,CORPORATE TRAVEL MANAGEMENT NORTH LTD,1011706509,162.4,TRAVEL EXPENSES WK 26,BD1 5HQ,ADMIN
FOOD STANDARDS AGENCY - Westminster,FOOD STANDARDS AGENCY - Westminster,2018-07-09,EXP - PURCHASE OF GOODS/SERVICES - OTHER TRAVEL,Internal Audit,CORPORATE TRAVEL MANAGEMENT NORTH LTD,1011706509,157.97,TRAVEL EXPENSES WK 26,BD1 5HQ,ADMIN
FOOD STANDARDS AGENCY - Westminster,FOOD STANDARDS AGENCY - Westminster,2018-07-09,EXP - PURCHASE OF GOODS/SERVICES - RAIL TRAVEL,Allergens,CORPORATE TRAVEL MANAGEMENT NORTH LTD,1011706509,155.1,TRAVEL EXPENSES WK 26,BD1 5HQ,ADMIN
FOOD STANDARDS AGENCY - Westminster,FOOD STANDARDS AGENCY - Westminster,2018-07-03,EXP - PURCHASE OF GOODS/SERVICES - RAIL TRAVEL,North 2,CORPORATE TRAVEL MANAGEMENT NORTH LTD,1011706459,154.55,TRAVEL EXPENSES WK 25,BD1 5HQ,PROGRAMME
FOOD STANDARDS AGENCY - Westminster,FOOD STANDARDS AGENCY - Westminster,2018-07-20,EXP - PURCHASE OF GOODS/SERVICES - RAIL TRAVEL,Chief Scientist,CORPORATE TRAVEL MANAGEMENT NORTH LTD,1011706613,152.9,TRAVEL EXPENSES WK 27,BD1 5HQ,ADMIN
FOOD STANDARDS AGENCY - Westminster,FOOD STANDARDS AGENCY - Westminster,2018-07-09,EXP - PURCHASE OF GOODS/SERVICES - RAIL TRAVEL,Resilience - Admin,CORPORATE TRAVEL MANAGEMENT NORTH LTD,1011706509,151.8,TRAVEL EXPENSES WK 26,BD1 5HQ,ADMIN
FOOD STANDARDS AGENCY - Westminster,FOOD STANDARDS AGENCY - Westminster,2018-07-09,EXP - PURCHASE OF GOODS/SERVICES - RAIL TRAVEL,Legal Branch A & Investigations,CORPORATE TRAVEL MANAGEMENT NORTH LTD,1011706509,147.7,TRAVEL EXPENSES WK 26,BD1 5HQ,ADMIN
FOOD STANDARDS AGENCY - Westminster,FOOD STANDARDS AGENCY - Westminster,2018-07-03,EXP - PURCHASE OF GOODS/SERVICES - RAIL TRAVEL,Analysis & Research Branch,CORPORATE TRAVEL MANAGEMENT NORTH LTD,1011706459,144.8,TRAVEL EXPENSES WK 25,BD1 5HQ,ADMIN
FOOD STANDARDS AGENCY - Westminster,FOOD STANDARDS AGENCY - Westminster,2018-07-24,EXP - PURCHASE OF GOODS/SERVICES - AIR TRAVEL,Contaminants HoD,CORPORATE TRAVEL MANAGEMENT NORTH LTD,1011706641,144.06,TRAVEL EXPENSES WK 28,BD1 5HQ,ADMIN
FOOD STANDARDS AGENCY - Westminster,FOOD STANDARDS AGENCY - Westminster,2018-07-24,EXP - PURCHASE OF GOODS/SERVICES - RAIL TRAVEL,Corporate Support Unit,CORPORATE TRAVEL MANAGEMENT NORTH LTD,1011706641,142.9,TRAVEL EXPENSES WK 28,BD1 5HQ,ADMIN
FOOD STANDARDS AGENCY - Westminster,FOOD STANDARDS AGENCY - Westminster,2018-07-24,EXP - PURCHASE OF GOODS/SERVICES - AIR TRAVEL,Food Incidents & Resilience - Prog,CORPORATE TRAVEL MANAGEMENT NORTH LTD,1011706641,142.54,TRAVEL EXPENSES WK 28,BD1 5HQ,PROGRAMME
FOOD STANDARDS AGENCY - Westminster,FOOD STANDARDS AGENCY - Westminster,2018-07-24,EXP - PURCHASE OF GOODS/SERVICES - RAIL TRAVEL,Procurement,CORPORATE TRAVEL MANAGEMENT NORTH LTD,1011706641,140.5,TRAVEL EXPENSES WK 28,BD1 5HQ,ADMIN
FOOD STANDARDS AGENCY - Westminster,FOOD STANDARDS AGENCY - Westminster,2018-07-09,EXP - PURCHASE OF GOODS/SERVICES - RAIL TRAVEL,Chief Executive & Private Office,CORPORATE TRAVEL MANAGEMENT NORTH LTD,1011706509,139.7,TRAVEL EXPENSES WK 26,BD1 5HQ,ADMIN
FOOD STANDARDS AGENCY - Westminster,FOOD STANDARDS AGENCY - Westminster,2018-07-09,EXP - PURCHASE OF GOODS/SERVICES - FOREIGN SUBSISTENCE,Operations Local Delivery ,CORPORATE TRAVEL MANAGEMENT NORTH LTD,1011706509,139.19,TRAVEL EXPENSES WK 26,BD1 5HQ,ADMIN
FOOD STANDARDS AGENCY - Westminster,FOOD STANDARDS AGENCY - Westminster,2018-07-03,EXP - PURCHASE OF GOODS/SERVICES - SUBSISTENCE,Chief Scientist,CORPORATE TRAVEL MANAGEMENT NORTH LTD,1011706459,139.18,TRAVEL EXPENSES WK 25,BD1 5HQ,ADMIN
FOOD STANDARDS AGENCY - Westminster,FOOD STANDARDS AGENCY - Westminster,2018-07-09,EXP - PURCHASE OF GOODS/SERVICES - RAIL TRAVEL,Wales and West 2 (Wales),CORPORATE TRAVEL MANAGEMENT NORTH LTD,1011706509,138.7,TRAVEL EXPENSES WK 26,BD1 5HQ,PROGRAMME
FOOD STANDARDS AGENCY - Westminster,FOOD STANDARDS AGENCY - Westminster,2018-07-03,EXP - PURCHASE OF GOODS/SERVICES - SUBSISTENCE,Imports & Exports Team (Admin),CORPORATE TRAVEL MANAGEMENT NORTH LTD,1011706459,138.4,TRAVEL EXPENSES WK 25,BD1 5HQ,ADMIN
FOOD STANDARDS AGENCY - Westminster,FOOD STANDARDS AGENCY - Westminster,2018-07-03,EXP - PURCHASE OF GOODS/SERVICES - RAIL TRAVEL,Food Production Branch,CORPORATE TRAVEL MANAGEMENT NORTH LTD,1011706459,137,TRAVEL EXPENSES WK 25,BD1 5HQ,ADMIN
FOOD STANDARDS AGENCY - Westminster,FOOD STANDARDS AGENCY - Westminster,2018-07-20,EXP - PURCHASE OF GOODS/SERVICES - SUBSISTENCE,Contaminants HoD,CORPORATE TRAVEL MANAGEMENT NORTH LTD,1011706613,136.8,TRAVEL EXPENSES WK 27,BD1 5HQ,ADMIN
FOOD STANDARDS AGENCY - Westminster,FOOD STANDARDS AGENCY - Westminster,2018-07-09,EXP - PURCHASE OF GOODS/SERVICES - FOREIGN SUBSISTENCE,Contaminants Policy & Strategy Unit,CORPORATE TRAVEL MANAGEMENT NORTH LTD,1011706509,135.89,TRAVEL EXPENSES WK 26,BD1 5HQ,ADMIN
FOOD STANDARDS AGENCY - Westminster,FOOD STANDARDS AGENCY - Westminster,2018-07-09,EXP - PURCHASE OF GOODS/SERVICES - SUBSISTENCE,Contaminants Policy & Strategy Unit,CORPORATE TRAVEL MANAGEMENT NORTH LTD,1011706509,135.89,TRAVEL EXPENSES WK 26,BD1 5HQ,ADMIN
FOOD STANDARDS AGENCY - Westminster,FOOD STANDARDS AGENCY - Westminster,2018-07-20,EXP - PURCHASE OF GOODS/SERVICES - FOREIGN SUBSISTENCE,Food Incidents & Resilience - Prog,CORPORATE TRAVEL MANAGEMENT NORTH LTD,1011706613,135.21,TRAVEL EXPENSES WK 27,BD1 5HQ,PROGRAMME
FOOD STANDARDS AGENCY - Westminster,FOOD STANDARDS AGENCY - Westminster,2018-07-09,EXP - PURCHASE OF GOODS/SERVICES - TAXI SERVICES,Operations Assurance ,CORPORATE TRAVEL MANAGEMENT NORTH LTD,1011706509,133.27,TRAVEL EXPENSES WK 26,BD1 5HQ,PROGRAMME
FOOD STANDARDS AGENCY - Westminster,FOOD STANDARDS AGENCY - Westminster,2018-07-20,EXP - PURCHASE OF GOODS/SERVICES - RAIL TRAVEL,Analysis & Research Branch,CORPORATE TRAVEL MANAGEMENT NORTH LTD,1011706613,132.45,TRAVEL EXPENSES WK 27,BD1 5HQ,ADMIN
FOOD STANDARDS AGENCY - Westminster,FOOD STANDARDS AGENCY - Westminster,2018-07-20,EXP - PURCHASE OF GOODS/SERVICES - SUBSISTENCE,Comms Directors Office,CORPORATE TRAVEL MANAGEMENT NORTH LTD,1011706613,130.6,TRAVEL EXPENSES WK 27,BD1 5HQ,ADMIN
FOOD STANDARDS AGENCY - Westminster,FOOD STANDARDS AGENCY - Westminster,2018-07-03,EXP - PURCHASE OF GOODS/SERVICES - SUBSISTENCE,IT Strategy,CORPORATE TRAVEL MANAGEMENT NORTH LTD,1011706459,130.6,TRAVEL EXPENSES WK 25,BD1 5HQ,ADMIN
FOOD STANDARDS AGENCY - Westminster,FOOD STANDARDS AGENCY - Westminster,2018-07-03,EXP - PURCHASE OF GOODS/SERVICES - SUBSISTENCE,Programme and project delivery,CORPORATE TRAVEL MANAGEMENT NORTH LTD,1011706459,130.6,TRAVEL EXPENSES WK 25,BD1 5HQ,ADMIN
FOOD STANDARDS AGENCY - Westminster,FOOD STANDARDS AGENCY - Westminster,2018-07-24,EXP - PURCHASE OF GOODS/SERVICES - RAIL TRAVEL,Analysis & Research Branch,CORPORATE TRAVEL MANAGEMENT NORTH LTD,1011706641,130.5,TRAVEL EXPENSES WK 28,BD1 5HQ,ADMIN
FOOD STANDARDS AGENCY - Westminster,FOOD STANDARDS AGENCY - Westminster,2018-07-09,EXP - PURCHASE OF GOODS/SERVICES - SUBSISTENCE,Planning and Performance,CORPORATE TRAVEL MANAGEMENT NORTH LTD,1011706509,126.6,TRAVEL EXPENSES WK 26,BD1 5HQ,ADMIN
FOOD STANDARDS AGENCY - Westminster,FOOD STANDARDS AGENCY - Westminster,2018-07-03,EXP - PURCHASE OF GOODS/SERVICES - SUBSISTENCE,Animal Feed Branch,CORPORATE TRAVEL MANAGEMENT NORTH LTD,1011706459,123.11,TRAVEL EXPENSES WK 25,BD1 5HQ,ADMIN
FOOD STANDARDS AGENCY - Westminster,FOOD STANDARDS AGENCY - Westminster,2018-07-24,EXP - PURCHASE OF GOODS/SERVICES - AIR TRAVEL,Comms Directors Office,CORPORATE TRAVEL MANAGEMENT NORTH LTD,1011706641,121.95,TRAVEL EXPENSES WK 28,BD1 5HQ,ADMIN
FOOD STANDARDS AGENCY - Westminster,FOOD STANDARDS AGENCY - Westminster,2018-07-24,EXP - PURCHASE OF GOODS/SERVICES - RAIL TRAVEL,Non Meat Field Ops,CORPORATE TRAVEL MANAGEMENT NORTH LTD,1011706641,121.9,TRAVEL EXPENSES WK 28,BD1 5HQ,PROGRAMME
FOOD STANDARDS AGENCY - Westminster,FOOD STANDARDS AGENCY - Westminster,2018-07-24,EXP - PURCHASE OF GOODS/SERVICES - RAIL TRAVEL,EU Regulatory Reform Branch,CORPORATE TRAVEL MANAGEMENT NORTH LTD,1011706641,121.6,TRAVEL EXPENSES WK 28,BD1 5HQ,ADMIN
FOOD STANDARDS AGENCY - Westminster,FOOD STANDARDS AGENCY - Westminster,2018-07-09,EXP - PURCHASE OF GOODS/SERVICES - SUBSISTENCE,Programme and project delivery,CORPORATE TRAVEL MANAGEMENT NORTH LTD,1011706509,120.1,TRAVEL EXPENSES WK 26,BD1 5HQ,ADMIN
FOOD STANDARDS AGENCY - Westminster,FOOD STANDARDS AGENCY - Westminster,2018-07-24,EXP - PURCHASE OF GOODS/SERVICES - OTHER TRAVEL,Operations Assurance ,CORPORATE TRAVEL MANAGEMENT NORTH LTD,1011706641,119.58,TRAVEL EXPENSES WK 28,BD1 5HQ,PROGRAMME
FOOD STANDARDS AGENCY - Westminster,FOOD STANDARDS AGENCY - Westminster,2018-07-24,EXP - PURCHASE OF GOODS/SERVICES - SUBSISTENCE,East 2,CORPORATE TRAVEL MANAGEMENT NORTH LTD,1011706641,119.2,TRAVEL EXPENSES WK 28,BD1 5HQ,PROGRAMME
FOOD STANDARDS AGENCY - Westminster,FOOD STANDARDS AGENCY - Westminster,2018-07-20,EXP - PURCHASE OF GOODS/SERVICES - OTHER TRAVEL,Internal Audit,CORPORATE TRAVEL MANAGEMENT NORTH LTD,1011706613,117.98,TRAVEL EXPENSES WK 27,BD1 5HQ,ADMIN
FOOD STANDARDS AGENCY - Westminster,FOOD STANDARDS AGENCY - Westminster,2018-07-24,EXP - PURCHASE OF GOODS/SERVICES - RAIL TRAVEL,Internal Audit,CORPORATE TRAVEL MANAGEMENT NORTH LTD,1011706641,117.8,TRAVEL EXPENSES WK 28,BD1 5HQ,ADMIN
FOOD STANDARDS AGENCY - Westminster,FOOD STANDARDS AGENCY - Westminster,2018-07-24,EXP - PURCHASE OF GOODS/SERVICES - SUBSISTENCE,Corporate Support Unit,CORPORATE TRAVEL MANAGEMENT NORTH LTD,1011706641,115.55,TRAVEL EXPENSES WK 28,BD1 5HQ,ADMIN
FOOD STANDARDS AGENCY - Westminster,FOOD STANDARDS AGENCY - Westminster,2018-07-20,EXP - PURCHASE OF GOODS/SERVICES - FOREIGN SUBSISTENCE,Food Crime Unit - Admin,CORPORATE TRAVEL MANAGEMENT NORTH LTD,1011706613,110.49,TRAVEL EXPENSES WK 27,BD1 5HQ,ADMIN
FOOD STANDARDS AGENCY - Westminster,FOOD STANDARDS AGENCY - Westminster,2018-07-20,EXP - PURCHASE OF GOODS/SERVICES - SUBSISTENCE,East 3,CORPORATE TRAVEL MANAGEMENT NORTH LTD,1011706613,110.2,TRAVEL EXPENSES WK 27,BD1 5HQ,PROGRAMME
FOOD STANDARDS AGENCY - Westminster,FOOD STANDARDS AGENCY - Westminster,2018-07-20,EXP - PURCHASE OF GOODS/SERVICES - SUBSISTENCE,North 4,CORPORATE TRAVEL MANAGEMENT NORTH LTD,1011706613,110.2,TRAVEL EXPENSES WK 27,BD1 5HQ,PROGRAMME
FOOD STANDARDS AGENCY - Westminster,FOOD STANDARDS AGENCY - Westminster,2018-07-27,EXP - PURCHASE OF GOODS/SERVICES - SUPPORT,IT Service Delivery,COMPUTACENTER UK LTD,1011706698,110,ASA5516 & ASA5525 Hardware maintenance - 1 Year,AL10 9TW,ADMIN
FOOD STANDARDS AGENCY - Westminster,FOOD STANDARDS AGENCY - Westminster,2018-07-20,EXP - PURCHASE OF GOODS/SERVICES - RAIL TRAVEL,Contaminants Policy & Strategy Unit,CORPORATE TRAVEL MANAGEMENT NORTH LTD,1011706613,106.1,TRAVEL EXPENSES WK 27,BD1 5HQ,ADMIN
FOOD STANDARDS AGENCY - Westminster,FOOD STANDARDS AGENCY - Westminster,2018-07-03,EXP - PURCHASE OF GOODS/SERVICES - RAIL TRAVEL,North 1,CORPORATE TRAVEL MANAGEMENT NORTH LTD,1011706459,105.6,TRAVEL EXPENSES WK 25,BD1 5HQ,PROGRAMME
FOOD STANDARDS AGENCY - Westminster,FOOD STANDARDS AGENCY - Westminster,2018-07-20,EXP - PURCHASE OF GOODS/SERVICES - RAIL TRAVEL,Animal Feed Branch,CORPORATE TRAVEL MANAGEMENT NORTH LTD,1011706613,104.5,TRAVEL EXPENSES WK 27,BD1 5HQ,ADMIN
FOOD STANDARDS AGENCY - Westminster,FOOD STANDARDS AGENCY - Westminster,2018-07-03,EXP - PURCHASE OF GOODS/SERVICES - RAIL TRAVEL,Internal Audit,CORPORATE TRAVEL MANAGEMENT NORTH LTD,1011706459,101.8,TRAVEL EXPENSES WK 25,BD1 5HQ,ADMIN
FOOD STANDARDS AGENCY - Westminster,FOOD STANDARDS AGENCY - Westminster,2018-07-24,EXP - PURCHASE OF GOODS/SERVICES - OTHER TRAVEL,Operational Delivery,CORPORATE TRAVEL MANAGEMENT NORTH LTD,1011706641,101.46,TRAVEL EXPENSES WK 28,BD1 5HQ,PROGRAMME
FOOD STANDARDS AGENCY - Westminster,FOOD STANDARDS AGENCY - Westminster,2018-07-24,EXP - PURCHASE OF GOODS/SERVICES - SUBSISTENCE,Wales and West 4 ,CORPORATE TRAVEL MANAGEMENT NORTH LTD,1011706641,99.93,TRAVEL EXPENSES WK 28,BD1 5HQ,PROGRAMME
FOOD STANDARDS AGENCY - Westminster,FOOD STANDARDS AGENCY - Westminster,2018-07-03,EXP - PURCHASE OF GOODS/SERVICES - SUBSISTENCE,East 3,CORPORATE TRAVEL MANAGEMENT NORTH LTD,1011706459,97.63,TRAVEL EXPENSES WK 25,BD1 5HQ,PROGRAMME
FOOD STANDARDS AGENCY - Westminster,FOOD STANDARDS AGENCY - Westminster,2018-07-09,EXP - PURCHASE OF GOODS/SERVICES - RAIL TRAVEL,East 3,CORPORATE TRAVEL MANAGEMENT NORTH LTD,1011706509,97.1,TRAVEL EXPENSES WK 26,BD1 5HQ,PROGRAMME
FOOD STANDARDS AGENCY - Westminster,FOOD STANDARDS AGENCY - Westminster,2018-07-03,EXP - PURCHASE OF GOODS/SERVICES - SUBSISTENCE,Food Hygiene Policy Branch,CORPORATE TRAVEL MANAGEMENT NORTH LTD,1011706459,95.6,TRAVEL EXPENSES WK 25,BD1 5HQ,ADMIN
FOOD STANDARDS AGENCY - Westminster,FOOD STANDARDS AGENCY - Westminster,2018-07-09,EXP - PURCHASE OF GOODS/SERVICES - SUBSISTENCE,Legal Branch A & Investigations,CORPORATE TRAVEL MANAGEMENT NORTH LTD,1011706509,95.6,TRAVEL EXPENSES WK 26,BD1 5HQ,ADMIN
FOOD STANDARDS AGENCY - Westminster,FOOD STANDARDS AGENCY - Westminster,2018-07-24,EXP - PURCHASE OF GOODS/SERVICES - RAIL TRAVEL,Wales and West 1 (England),CORPORATE TRAVEL MANAGEMENT NORTH LTD,1011706641,92.1,TRAVEL EXPENSES WK 28,BD1 5HQ,PROGRAMME
FOOD STANDARDS AGENCY - Westminster,FOOD STANDARDS AGENCY - Westminster,2018-07-20,EXP - PURCHASE OF GOODS/SERVICES - RAIL TRAVEL,EU Regulatory Reform Branch,CORPORATE TRAVEL MANAGEMENT NORTH LTD,1011706613,91.5,TRAVEL EXPENSES WK 27,BD1 5HQ,ADMIN
FOOD STANDARDS AGENCY - Westminster,FOOD STANDARDS AGENCY - Westminster,2018-07-03,EXP - PURCHASE OF GOODS/SERVICES - SUBSISTENCE,Contaminants HoD,CORPORATE TRAVEL MANAGEMENT NORTH LTD,1011706459,91.03,TRAVEL EXPENSES WK 25,BD1 5HQ,ADMIN
FOOD STANDARDS AGENCY - Westminster,FOOD STANDARDS AGENCY - Westminster,2018-07-03,EXP - PURCHASE OF GOODS/SERVICES - SUBSISTENCE,Comms Directors Office,CORPORATE TRAVEL MANAGEMENT NORTH LTD,1011706459,89.6,TRAVEL EXPENSES WK 25,BD1 5HQ,ADMIN
FOOD STANDARDS AGENCY - Westminster,FOOD STANDARDS AGENCY - Westminster,2018-07-03,EXP - PURCHASE OF GOODS/SERVICES - RAIL TRAVEL,Finance Director & Branch,CORPORATE TRAVEL MANAGEMENT NORTH LTD,1011706459,88.1,TRAVEL EXPENSES WK 25,BD1 5HQ,ADMIN
FOOD STANDARDS AGENCY - Westminster,FOOD STANDARDS AGENCY - Westminster,2018-07-24,EXP - PURCHASE OF GOODS/SERVICES - SUBSISTENCE,Wales and West 2 (Wales),CORPORATE TRAVEL MANAGEMENT NORTH LTD,1011706641,86.9,TRAVEL EXPENSES WK 28,BD1 5HQ,PROGRAMME
FOOD STANDARDS AGENCY - Westminster,FOOD STANDARDS AGENCY - Westminster,2018-07-09,EXP - PURCHASE OF GOODS/SERVICES - RAIL TRAVEL,East 4,CORPORATE TRAVEL MANAGEMENT NORTH LTD,1011706509,84.6,TRAVEL EXPENSES WK 26,BD1 5HQ,PROGRAMME
FOOD STANDARDS AGENCY - Westminster,FOOD STANDARDS AGENCY - Westminster,2018-07-24,EXP - PURCHASE OF GOODS/SERVICES - SUBSISTENCE,Contaminants Policy & Strategy Unit,CORPORATE TRAVEL MANAGEMENT NORTH LTD,1011706641,84.6,TRAVEL EXPENSES WK 28,BD1 5HQ,ADMIN
FOOD STANDARDS AGENCY - Westminster,FOOD STANDARDS AGENCY - Westminster,2018-07-09,EXP - PURCHASE OF GOODS/SERVICES - SUBSISTENCE,Corporate Support Unit,CORPORATE TRAVEL MANAGEMENT NORTH LTD,1011706509,83.6,TRAVEL EXPENSES WK 26,BD1 5HQ,ADMIN
FOOD STANDARDS AGENCY - Westminster,FOOD STANDARDS AGENCY - Westminster,2018-07-24,EXP - PURCHASE OF GOODS/SERVICES - SUBSISTENCE,Analysis & Research Branch,CORPORATE TRAVEL MANAGEMENT NORTH LTD,1011706641,82.33,TRAVEL EXPENSES WK 28,BD1 5HQ,ADMIN
FOOD STANDARDS AGENCY - Westminster,FOOD STANDARDS AGENCY - Westminster,2018-07-03,EXP - PURCHASE OF GOODS/SERVICES - SUBSISTENCE,East 4,CORPORATE TRAVEL MANAGEMENT NORTH LTD,1011706459,82.1,TRAVEL EXPENSES WK 25,BD1 5HQ,PROGRAMME
FOOD STANDARDS AGENCY - Westminster,FOOD STANDARDS AGENCY - Westminster,2018-07-24,EXP - PURCHASE OF GOODS/SERVICES - SUBSISTENCE,Internal Audit,CORPORATE TRAVEL MANAGEMENT NORTH LTD,1011706641,81.6,TRAVEL EXPENSES WK 28,BD1 5HQ,ADMIN
FOOD STANDARDS AGENCY - Westminster,FOOD STANDARDS AGENCY - Westminster,2018-07-24,EXP - PURCHASE OF GOODS/SERVICES - SUBSISTENCE,Operations Local Delivery ,CORPORATE TRAVEL MANAGEMENT NORTH LTD,1011706641,80.2,TRAVEL EXPENSES WK 28,BD1 5HQ,ADMIN
FOOD STANDARDS AGENCY - Westminster,FOOD STANDARDS AGENCY - Westminster,2018-07-09,EXP - PURCHASE OF GOODS/SERVICES - SUBSISTENCE,North 1,CORPORATE TRAVEL MANAGEMENT NORTH LTD,1011706509,79.8,TRAVEL EXPENSES WK 26,BD1 5HQ,PROGRAMME
FOOD STANDARDS AGENCY - Westminster,FOOD STANDARDS AGENCY - Westminster,2018-07-24,EXP - PURCHASE OF GOODS/SERVICES - SUBSISTENCE,North 1,CORPORATE TRAVEL MANAGEMENT NORTH LTD,1011706641,79.6,TRAVEL EXPENSES WK 28,BD1 5HQ,PROGRAMME
FOOD STANDARDS AGENCY - Westminster,FOOD STANDARDS AGENCY - Westminster,2018-07-24,EXP - PURCHASE OF GOODS/SERVICES - SUBSISTENCE,North 2,CORPORATE TRAVEL MANAGEMENT NORTH LTD,1011706641,79.6,TRAVEL EXPENSES WK 28,BD1 5HQ,PROGRAMME
FOOD STANDARDS AGENCY - Westminster,FOOD STANDARDS AGENCY - Westminster,2018-07-24,EXP - PURCHASE OF GOODS/SERVICES - RAIL TRAVEL,Allergens,CORPORATE TRAVEL MANAGEMENT NORTH LTD,1011706641,78.6,TRAVEL EXPENSES WK 28,BD1 5HQ,ADMIN
FOOD STANDARDS AGENCY - Westminster,FOOD STANDARDS AGENCY - Westminster,2018-07-24,EXP - PURCHASE OF GOODS/SERVICES - RAIL TRAVEL,Planning and Performance,CORPORATE TRAVEL MANAGEMENT NORTH LTD,1011706641,78.4,TRAVEL EXPENSES WK 28,BD1 5HQ,ADMIN
FOOD STANDARDS AGENCY - Westminster,FOOD STANDARDS AGENCY - Westminster,2018-07-20,EXP - PURCHASE OF GOODS/SERVICES - SUBSISTENCE,North 1,CORPORATE TRAVEL MANAGEMENT NORTH LTD,1011706613,74.6,TRAVEL EXPENSES WK 27,BD1 5HQ,PROGRAMME
FOOD STANDARDS AGENCY - Westminster,FOOD STANDARDS AGENCY - Westminster,2018-07-03,EXP - PURCHASE OF GOODS/SERVICES - SUBSISTENCE,Finance Director & Branch,CORPORATE TRAVEL MANAGEMENT NORTH LTD,1011706459,72.45,TRAVEL EXPENSES WK 25,BD1 5HQ,ADMIN
FOOD STANDARDS AGENCY - Westminster,FOOD STANDARDS AGENCY - Westminster,2018-07-03,EXP - PURCHASE OF GOODS/SERVICES - SUBSISTENCE,Analysis & Research Branch,CORPORATE TRAVEL MANAGEMENT NORTH LTD,1011706459,71.88,TRAVEL EXPENSES WK 25,BD1 5HQ,ADMIN
FOOD STANDARDS AGENCY - Westminster,FOOD STANDARDS AGENCY - Westminster,2018-07-24,EXP - PURCHASE OF GOODS/SERVICES - TAXI SERVICES,Operations Assurance ,CORPORATE TRAVEL MANAGEMENT NORTH LTD,1011706641,69.83,TRAVEL EXPENSES WK 28,BD1 5HQ,PROGRAMME
FOOD STANDARDS AGENCY - Westminster,FOOD STANDARDS AGENCY - Westminster,2018-07-09,EXP - PURCHASE OF GOODS/SERVICES - SUBSISTENCE,Wales and West 3 ,CORPORATE TRAVEL MANAGEMENT NORTH LTD,1011706509,69.6,TRAVEL EXPENSES WK 26,BD1 5HQ,PROGRAMME
FOOD STANDARDS AGENCY - Westminster,FOOD STANDARDS AGENCY - Westminster,2018-07-24,EXP - PURCHASE OF GOODS/SERVICES - RAIL TRAVEL,Scientific Methods & Laboratory Policy,CORPORATE TRAVEL MANAGEMENT NORTH LTD,1011706641,67.2,TRAVEL EXPENSES WK 28,BD1 5HQ,ADMIN
FOOD STANDARDS AGENCY - Westminster,FOOD STANDARDS AGENCY - Westminster,2018-07-03,EXP - PURCHASE OF GOODS/SERVICES - SUBSISTENCE,Wales and West 1 (England),CORPORATE TRAVEL MANAGEMENT NORTH LTD,1011706459,67.1,TRAVEL EXPENSES WK 25,BD1 5HQ,PROGRAMME
FOOD STANDARDS AGENCY - Westminster,FOOD STANDARDS AGENCY - Westminster,2018-07-24,EXP - PURCHASE OF GOODS/SERVICES - SUBSISTENCE,Contaminants HoD,CORPORATE TRAVEL MANAGEMENT NORTH LTD,1011706641,65.6,TRAVEL EXPENSES WK 28,BD1 5HQ,ADMIN
FOOD STANDARDS AGENCY - Westminster,FOOD STANDARDS AGENCY - Westminster,2018-07-09,EXP - PURCHASE OF GOODS/SERVICES - SUBSISTENCE,East 1,CORPORATE TRAVEL MANAGEMENT NORTH LTD,1011706509,65.6,TRAVEL EXPENSES WK 26,BD1 5HQ,PROGRAMME
FOOD STANDARDS AGENCY - Westminster,FOOD STANDARDS AGENCY - Westminster,2018-07-09,EXP - PURCHASE OF GOODS/SERVICES - RAIL TRAVEL,Corporate Support Unit,CORPORATE TRAVEL MANAGEMENT NORTH LTD,1011706509,64.2,TRAVEL EXPENSES WK 26,BD1 5HQ,ADMIN
FOOD STANDARDS AGENCY - Westminster,FOOD STANDARDS AGENCY - Westminster,2018-07-03,EXP - PURCHASE OF GOODS/SERVICES - RAIL TRAVEL,Wales and West 1 (Wales),CORPORATE TRAVEL MANAGEMENT NORTH LTD,1011706459,64,TRAVEL EXPENSES WK 25,BD1 5HQ,PROGRAMME
FOOD STANDARDS AGENCY - Westminster,FOOD STANDARDS AGENCY - Westminster,2018-07-09,EXP - PURCHASE OF GOODS/SERVICES - OTHER TRAVEL,Operations Assurance ,CORPORATE TRAVEL MANAGEMENT NORTH LTD,1011706509,56,TRAVEL EXPENSES WK 26,BD1 5HQ,PROGRAMME
FOOD STANDARDS AGENCY - Westminster,FOOD STANDARDS AGENCY - Westminster,2018-07-20,EXP - PURCHASE OF GOODS/SERVICES - SUBSISTENCE,Procurement,CORPORATE TRAVEL MANAGEMENT NORTH LTD,1011706613,55.1,TRAVEL EXPENSES WK 27,BD1 5HQ,ADMIN
FOOD STANDARDS AGENCY - Westminster,FOOD STANDARDS AGENCY - Westminster,2018-07-03,EXP - PURCHASE OF GOODS/SERVICES - RAIL TRAVEL,Wales and West 4 ,CORPORATE TRAVEL MANAGEMENT NORTH LTD,1011706459,54.7,TRAVEL EXPENSES WK 25,BD1 5HQ,PROGRAMME
FOOD STANDARDS AGENCY - Westminster,FOOD STANDARDS AGENCY - Westminster,2018-07-24,EXP - PURCHASE OF GOODS/SERVICES - RAIL TRAVEL,Wales and West 2 (England),CORPORATE TRAVEL MANAGEMENT NORTH LTD,1011706641,54,TRAVEL EXPENSES WK 28,BD1 5HQ,PROGRAMME
FOOD STANDARDS AGENCY - Westminster,FOOD STANDARDS AGENCY - Westminster,2018-07-03,EXP - PURCHASE OF GOODS/SERVICES - SUBSISTENCE,North 1,CORPORATE TRAVEL MANAGEMENT NORTH LTD,1011706459,53.6,TRAVEL EXPENSES WK 25,BD1 5HQ,PROGRAMME
FOOD STANDARDS AGENCY - Westminster,FOOD STANDARDS AGENCY - Westminster,2018-07-09,EXP - PURCHASE OF GOODS/SERVICES - RAIL TRAVEL,Food Crime Unit - Prog,CORPORATE TRAVEL MANAGEMENT NORTH LTD,1011706509,52,TRAVEL EXPENSES WK 26,BD1 5HQ,PROGRAMME
FOOD STANDARDS AGENCY - Westminster,FOOD STANDARDS AGENCY - Westminster,2018-07-20,EXP - PURCHASE OF GOODS/SERVICES - RAIL TRAVEL,Digital,CORPORATE TRAVEL MANAGEMENT NORTH LTD,1011706613,51.6,TRAVEL EXPENSES WK 27,BD1 5HQ,ADMIN
FOOD STANDARDS AGENCY - Westminster,FOOD STANDARDS AGENCY - Westminster,2018-07-03,EXP - PURCHASE OF GOODS/SERVICES - RAIL TRAVEL,Animal Feed Branch,CORPORATE TRAVEL MANAGEMENT NORTH LTD,1011706459,51.1,TRAVEL EXPENSES WK 25,BD1 5HQ,ADMIN
FOOD STANDARDS AGENCY - Westminster,FOOD STANDARDS AGENCY - Westminster,2018-07-03,EXP - PURCHASE OF GOODS/SERVICES - SUBSISTENCE,IT Service Delivery,CORPORATE TRAVEL MANAGEMENT NORTH LTD,1011706459,50.05,TRAVEL EXPENSES WK 25,BD1 5HQ,ADMIN
FOOD STANDARDS AGENCY - Westminster,FOOD STANDARDS AGENCY - Westminster,2018-07-20,EXP - PURCHASE OF GOODS/SERVICES - OTHER TRAVEL,Organisational Development,CORPORATE TRAVEL MANAGEMENT NORTH LTD,1011706613,49.99,TRAVEL EXPENSES WK 27,BD1 5HQ,ADMIN
FOOD STANDARDS AGENCY - Westminster,FOOD STANDARDS AGENCY - Westminster,2018-07-03,EXP - PURCHASE OF GOODS/SERVICES - SUBSISTENCE,Chief Executive & Private Office,CORPORATE TRAVEL MANAGEMENT NORTH LTD,1011706459,49.6,TRAVEL EXPENSES WK 25,BD1 5HQ,ADMIN
FOOD STANDARDS AGENCY - Westminster,FOOD STANDARDS AGENCY - Westminster,2018-07-20,EXP - PURCHASE OF GOODS/SERVICES - RAIL TRAVEL,Wales and West 2 (England),CORPORATE TRAVEL MANAGEMENT NORTH LTD,1011706613,48.5,TRAVEL EXPENSES WK 27,BD1 5HQ,PROGRAMME
FOOD STANDARDS AGENCY - Westminster,FOOD STANDARDS AGENCY - Westminster,2018-07-09,EXP - PURCHASE OF GOODS/SERVICES - RAIL TRAVEL,Contaminants HoD,CORPORATE TRAVEL MANAGEMENT NORTH LTD,1011706509,46.4,TRAVEL EXPENSES WK 26,BD1 5HQ,ADMIN
FOOD STANDARDS AGENCY - Westminster,FOOD STANDARDS AGENCY - Westminster,2018-07-03,EXP - PURCHASE OF GOODS/SERVICES - OTHER TRAVEL,Operations Assurance ,CORPORATE TRAVEL MANAGEMENT NORTH LTD,1011706459,44.95,TRAVEL EXPENSES WK 25,BD1 5HQ,PROGRAMME
FOOD STANDARDS AGENCY - Westminster,FOOD STANDARDS AGENCY - Westminster,2018-07-03,EXP - PURCHASE OF GOODS/SERVICES - RAIL TRAVEL,Digital,CORPORATE TRAVEL MANAGEMENT NORTH LTD,1011706459,42.3,TRAVEL EXPENSES WK 25,BD1 5HQ,ADMIN
FOOD STANDARDS AGENCY - Westminster,FOOD STANDARDS AGENCY - Westminster,2018-07-03,EXP - PURCHASE OF GOODS/SERVICES - SUBSISTENCE,Wales and West 3 ,CORPORATE TRAVEL MANAGEMENT NORTH LTD,1011706459,42.27,TRAVEL EXPENSES WK 25,BD1 5HQ,PROGRAMME
FOOD STANDARDS AGENCY - Westminster,FOOD STANDARDS AGENCY - Westminster,2018-07-09,EXP - PURCHASE OF GOODS/SERVICES - SUBSISTENCE,East 2,CORPORATE TRAVEL MANAGEMENT NORTH LTD,1011706509,41.55,TRAVEL EXPENSES WK 26,BD1 5HQ,PROGRAMME
FOOD STANDARDS AGENCY - Westminster,FOOD STANDARDS AGENCY - Westminster,2018-07-03,EXP - PURCHASE OF GOODS/SERVICES - RAIL TRAVEL,Additives,CORPORATE TRAVEL MANAGEMENT NORTH LTD,1011706459,39.9,TRAVEL EXPENSES WK 25,BD1 5HQ,ADMIN
FOOD STANDARDS AGENCY - Westminster,FOOD STANDARDS AGENCY - Westminster,2018-07-03,EXP - PURCHASE OF GOODS/SERVICES - RAIL TRAVEL,Resilience - Admin,CORPORATE TRAVEL MANAGEMENT NORTH LTD,1011706459,38.7,TRAVEL EXPENSES WK 25,BD1 5HQ,ADMIN
FOOD STANDARDS AGENCY - Westminster,FOOD STANDARDS AGENCY - Westminster,2018-07-09,EXP - PURCHASE OF GOODS/SERVICES - OTHER TRAVEL,Corporate Support Unit,CORPORATE TRAVEL MANAGEMENT NORTH LTD,1011706509,37.5,TRAVEL EXPENSES WK 26,BD1 5HQ,ADMIN
FOOD STANDARDS AGENCY - Westminster,FOOD STANDARDS AGENCY - Westminster,2018-07-09,EXP - PURCHASE OF GOODS/SERVICES - RAIL TRAVEL,Animal Feed Branch,CORPORATE TRAVEL MANAGEMENT NORTH LTD,1011706509,36,TRAVEL EXPENSES WK 26,BD1 5HQ,ADMIN
FOOD STANDARDS AGENCY - Westminster,FOOD STANDARDS AGENCY - Westminster,2018-07-09,EXP - PURCHASE OF GOODS/SERVICES - OTHER TRAVEL,Regulating our Future,CORPORATE TRAVEL MANAGEMENT NORTH LTD,1011706509,35.99,TRAVEL EXPENSES WK 26,BD1 5HQ,ADMIN
FOOD STANDARDS AGENCY - Westminster,FOOD STANDARDS AGENCY - Westminster,2018-07-24,EXP - PURCHASE OF GOODS/SERVICES - SUBSISTENCE,East 4,CORPORATE TRAVEL MANAGEMENT NORTH LTD,1011706641,35.25,TRAVEL EXPENSES WK 28,BD1 5HQ,PROGRAMME
FOOD STANDARDS AGENCY - Westminster,FOOD STANDARDS AGENCY - Westminster,2018-07-09,EXP - PURCHASE OF GOODS/SERVICES - SUBSISTENCE,North 4,CORPORATE TRAVEL MANAGEMENT NORTH LTD,1011706509,35.25,TRAVEL EXPENSES WK 26,BD1 5HQ,PROGRAMME
FOOD STANDARDS AGENCY - Westminster,FOOD STANDARDS AGENCY - Westminster,2018-07-20,EXP - PURCHASE OF GOODS/SERVICES - RAIL TRAVEL,Additives,CORPORATE TRAVEL MANAGEMENT NORTH LTD,1011706613,34,TRAVEL EXPENSES WK 27,BD1 5HQ,ADMIN
FOOD STANDARDS AGENCY - Westminster,FOOD STANDARDS AGENCY - Westminster,2018-07-24,EXP - PURCHASE OF GOODS/SERVICES - RAIL TRAVEL,Resilience - Admin,CORPORATE TRAVEL MANAGEMENT NORTH LTD,1011706641,33.8,TRAVEL EXPENSES WK 28,BD1 5HQ,ADMIN
FOOD STANDARDS AGENCY - Westminster,FOOD STANDARDS AGENCY - Westminster,2018-07-03,EXP - PURCHASE OF GOODS/SERVICES - RAIL TRAVEL,Wales and West 3 ,CORPORATE TRAVEL MANAGEMENT NORTH LTD,1011706459,33.7,TRAVEL EXPENSES WK 25,BD1 5HQ,PROGRAMME
FOOD STANDARDS AGENCY - Westminster,FOOD STANDARDS AGENCY - Westminster,2018-07-09,EXP - PURCHASE OF GOODS/SERVICES - TAXI SERVICES,Operational Delivery,CORPORATE TRAVEL MANAGEMENT NORTH LTD,1011706509,32.81,TRAVEL EXPENSES WK 26,BD1 5HQ,PROGRAMME
FOOD STANDARDS AGENCY - Westminster,FOOD STANDARDS AGENCY - Westminster,2018-07-20,EXP - PURCHASE OF GOODS/SERVICES - RAIL TRAVEL,IT Service Delivery,CORPORATE TRAVEL MANAGEMENT NORTH LTD,1011706613,32.3,TRAVEL EXPENSES WK 27,BD1 5HQ,ADMIN
FOOD STANDARDS AGENCY - Westminster,FOOD STANDARDS AGENCY - Westminster,2018-07-20,EXP - PURCHASE OF GOODS/SERVICES - OTHER TRAVEL,Chief Executive & Private Office,CORPORATE TRAVEL MANAGEMENT NORTH LTD,1011706613,31.95,TRAVEL EXPENSES WK 27,BD1 5HQ,ADMIN
FOOD STANDARDS AGENCY - Westminster,FOOD STANDARDS AGENCY - Westminster,2018-07-09,EXP - PURCHASE OF GOODS/SERVICES - RAIL TRAVEL,Internal Audit,CORPORATE TRAVEL MANAGEMENT NORTH LTD,1011706509,30.3,TRAVEL EXPENSES WK 26,BD1 5HQ,ADMIN
FOOD STANDARDS AGENCY - Westminster,FOOD STANDARDS AGENCY - Westminster,2018-07-20,EXP - PURCHASE OF GOODS/SERVICES - RAIL TRAVEL,Allergens,CORPORATE TRAVEL MANAGEMENT NORTH LTD,1011706613,26.5,TRAVEL EXPENSES WK 27,BD1 5HQ,ADMIN
FOOD STANDARDS AGENCY - Westminster,FOOD STANDARDS AGENCY - Westminster,2018-07-24,EXP - PURCHASE OF GOODS/SERVICES - OTHER TRAVEL,Additives,CORPORATE TRAVEL MANAGEMENT NORTH LTD,1011706641,25.15,TRAVEL EXPENSES WK 28,BD1 5HQ,ADMIN
FOOD STANDARDS AGENCY - Westminster,FOOD STANDARDS AGENCY - Westminster,2018-07-24,EXP - PURCHASE OF GOODS/SERVICES - OTHER TRAVEL,NI Food Safety,CORPORATE TRAVEL MANAGEMENT NORTH LTD,1011706641,25.15,TRAVEL EXPENSES WK 28,BD1 5HQ,ADMIN
FOOD STANDARDS AGENCY - Westminster,FOOD STANDARDS AGENCY - Westminster,2018-07-03,EXP - PURCHASE OF GOODS/SERVICES - OTHER TRAVEL,Regulating our Future,CORPORATE TRAVEL MANAGEMENT NORTH LTD,1011706459,25.15,TRAVEL EXPENSES WK 25,BD1 5HQ,ADMIN
FOOD STANDARDS AGENCY - Westminster,FOOD STANDARDS AGENCY - Westminster,2018-07-20,EXP - PURCHASE OF GOODS/SERVICES - RAIL TRAVEL,East 4,CORPORATE TRAVEL MANAGEMENT NORTH LTD,1011706613,24.05,TRAVEL EXPENSES WK 27,BD1 5HQ,PROGRAMME
FOOD STANDARDS AGENCY - Westminster,FOOD STANDARDS AGENCY - Westminster,2018-07-24,EXP - PURCHASE OF GOODS/SERVICES - TAXI SERVICES,Operational Delivery,CORPORATE TRAVEL MANAGEMENT NORTH LTD,1011706641,23.05,TRAVEL EXPENSES WK 28,BD1 5HQ,PROGRAMME
FOOD STANDARDS AGENCY - Westminster,FOOD STANDARDS AGENCY - Westminster,2018-07-27,EXP - PURCHASE OF GOODS/SERVICES - SUPPORT,IT Service Delivery,COMPUTACENTER UK LTD,1011706698,22,"C18062114134372690, C18062114134372692",AL10 9TW,ADMIN
FOOD STANDARDS AGENCY - Westminster,FOOD STANDARDS AGENCY - Westminster,2018-07-09,EXP - PURCHASE OF GOODS/SERVICES - RAIL TRAVEL,Scientific Methods & Laboratory Policy,CORPORATE TRAVEL MANAGEMENT NORTH LTD,1011706509,20.35,TRAVEL EXPENSES WK 26,BD1 5HQ,ADMIN
FOOD STANDARDS AGENCY - Westminster,FOOD STANDARDS AGENCY - Westminster,2018-07-09,EXP - PURCHASE OF GOODS/SERVICES - RAIL TRAVEL,Wales and West 1 (England),CORPORATE TRAVEL MANAGEMENT NORTH LTD,1011706509,20.3,TRAVEL EXPENSES WK 26,BD1 5HQ,PROGRAMME
FOOD STANDARDS AGENCY - Westminster,FOOD STANDARDS AGENCY - Westminster,2018-07-03,EXP - PURCHASE OF GOODS/SERVICES - OTHER TRAVEL,NI Food Safety,CORPORATE TRAVEL MANAGEMENT NORTH LTD,1011706459,19.15,TRAVEL EXPENSES WK 25,BD1 5HQ,ADMIN
FOOD STANDARDS AGENCY - Westminster,FOOD STANDARDS AGENCY - Westminster,2018-07-09,EXP - PURCHASE OF GOODS/SERVICES - RAIL TRAVEL,Analysis & Research Branch,CORPORATE TRAVEL MANAGEMENT NORTH LTD,1011706509,18.1,TRAVEL EXPENSES WK 26,BD1 5HQ,ADMIN
FOOD STANDARDS AGENCY - Westminster,FOOD STANDARDS AGENCY - Westminster,2018-07-20,EXP - PURCHASE OF GOODS/SERVICES - RAIL TRAVEL,Non Meat Field Ops,CORPORATE TRAVEL MANAGEMENT NORTH LTD,1011706613,17.4,TRAVEL EXPENSES WK 27,BD1 5HQ,PROGRAMME
FOOD STANDARDS AGENCY - Westminster,FOOD STANDARDS AGENCY - Westminster,2018-07-09,EXP - PURCHASE OF GOODS/SERVICES - RAIL TRAVEL,Food Crime Unit - Admin,CORPORATE TRAVEL MANAGEMENT NORTH LTD,1011706509,15.3,TRAVEL EXPENSES WK 26,BD1 5HQ,ADMIN
FOOD STANDARDS AGENCY - Westminster,FOOD STANDARDS AGENCY - Westminster,2018-07-09,EXP - PURCHASE OF GOODS/SERVICES - OTHER TRAVEL,NI Food Safety,CORPORATE TRAVEL MANAGEMENT NORTH LTD,1011706509,12.96,TRAVEL EXPENSES WK 26,BD1 5HQ,ADMIN
FOOD STANDARDS AGENCY - Westminster,FOOD STANDARDS AGENCY - Westminster,2018-07-03,EXP - PURCHASE OF GOODS/SERVICES - OTHER TRAVEL,Corporate Support Unit,CORPORATE TRAVEL MANAGEMENT NORTH LTD,1011706459,12.7,TRAVEL EXPENSES WK 25,BD1 5HQ,ADMIN
FOOD STANDARDS AGENCY - Westminster,FOOD STANDARDS AGENCY - Westminster,2018-07-03,EXP - PURCHASE OF GOODS/SERVICES - OTHER TRAVEL,IT Information & Knowledge Management,CORPORATE TRAVEL MANAGEMENT NORTH LTD,1011706459,12.7,TRAVEL EXPENSES WK 25,BD1 5HQ,ADMIN
FOOD STANDARDS AGENCY - Westminster,FOOD STANDARDS AGENCY - Westminster,2018-07-09,EXP - PURCHASE OF GOODS/SERVICES - TAXI SERVICES,Operations Local Delivery ,CORPORATE TRAVEL MANAGEMENT NORTH LTD,1011706509,12.24,TRAVEL EXPENSES WK 26,BD1 5HQ,ADMIN
FOOD STANDARDS AGENCY - Westminster,FOOD STANDARDS AGENCY - Westminster,2018-07-09,EXP - PURCHASE OF GOODS/SERVICES - TAXI SERVICES,IT Information & Knowledge Management,CORPORATE TRAVEL MANAGEMENT NORTH LTD,1011706509,10.49,TRAVEL EXPENSES WK 26,BD1 5HQ,ADMIN
FOOD STANDARDS AGENCY - Westminster,FOOD STANDARDS AGENCY - Westminster,2018-07-24,EXP - PURCHASE OF GOODS/SERVICES - TAXI SERVICES,IT Information & Knowledge Management,CORPORATE TRAVEL MANAGEMENT NORTH LTD,1011706641,10.49,TRAVEL EXPENSES WK 28,BD1 5HQ,ADMIN
FOOD STANDARDS AGENCY - Westminster,FOOD STANDARDS AGENCY - Westminster,2018-07-09,EXP - PURCHASE OF GOODS/SERVICES - RAIL TRAVEL,Wales and West 3 ,CORPORATE TRAVEL MANAGEMENT NORTH LTD,1011706509,8.8,TRAVEL EXPENSES WK 26,BD1 5HQ,PROGRAMME
FOOD STANDARDS AGENCY - Westminster,FOOD STANDARDS AGENCY - Westminster,2018-07-24,EXP - PURCHASE OF GOODS/SERVICES - OTHER TRAVEL,Contaminants HoD,CORPORATE TRAVEL MANAGEMENT NORTH LTD,1011706641,4.9,TRAVEL EXPENSES WK 28,BD1 5HQ,ADMIN
FOOD STANDARDS AGENCY - Westminster,FOOD STANDARDS AGENCY - Westminster,2018-07-03,EXP - PURCHASE OF GOODS/SERVICES - FOREIGN SUBSISTENCE,Additives,CORPORATE TRAVEL MANAGEMENT NORTH LTD,1011706459,1.2,TRAVEL EXPENSES WK 25,BD1 5HQ,ADMIN
FOOD STANDARDS AGENCY - Westminster,FOOD STANDARDS AGENCY - Westminster,2018-07-20,EXP - PURCHASE OF GOODS/SERVICES - FOREIGN SUBSISTENCE,Additives,CORPORATE TRAVEL MANAGEMENT NORTH LTD,1011706613,1.2,TRAVEL EXPENSES WK 27,BD1 5HQ,ADMIN
FOOD STANDARDS AGENCY - Westminster,FOOD STANDARDS AGENCY - Westminster,2018-07-09,EXP - PURCHASE OF GOODS/SERVICES - FOREIGN SUBSISTENCE,Contaminants HoD,CORPORATE TRAVEL MANAGEMENT NORTH LTD,1011706509,1.2,TRAVEL EXPENSES WK 26,BD1 5HQ,ADMIN
FOOD STANDARDS AGENCY - Westminster,FOOD STANDARDS AGENCY - Westminster,2018-07-24,EXP - PURCHASE OF GOODS/SERVICES - FOREIGN SUBSISTENCE,Additives,CORPORATE TRAVEL MANAGEMENT NORTH LTD,1011706641,0.6,TRAVEL EXPENSES WK 28,BD1 5HQ,ADMIN
FOOD STANDARDS AGENCY - Westminster,FOOD STANDARDS AGENCY - Westminster,2018-07-20,EXP - PURCHASE OF GOODS/SERVICES - FOREIGN SUBSISTENCE,Contaminants HoD,CORPORATE TRAVEL MANAGEMENT NORTH LTD,1011706613,0.6,TRAVEL EXPENSES WK 27,BD1 5HQ,ADMIN
FOOD STANDARDS AGENCY - Westminster,FOOD STANDARDS AGENCY - Westminster,2018-07-24,EXP - PURCHASE OF GOODS/SERVICES - SUBSISTENCE,Additives,CORPORATE TRAVEL MANAGEMENT NORTH LTD,1011706641,0.6,TRAVEL EXPENSES WK 28,BD1 5HQ,ADMIN
FOOD STANDARDS AGENCY - Westminster,FOOD STANDARDS AGENCY - Westminster,2018-07-20,EXP - PURCHASE OF GOODS/SERVICES - SUBSISTENCE,EU Regulatory Reform Branch,CORPORATE TRAVEL MANAGEMENT NORTH LTD,1011706613,0.6,TRAVEL EXPENSES WK 27,BD1 5HQ,ADMIN
FOOD STANDARDS AGENCY - Westminster,FOOD STANDARDS AGENCY - Westminster,2018-07-24,EXP - PURCHASE OF GOODS/SERVICES - SUBSISTENCE,Regulatory & International,CORPORATE TRAVEL MANAGEMENT NORTH LTD,1011706641,0.6,TRAVEL EXPENSES WK 28,BD1 5HQ,ADMIN
FOOD STANDARDS AGENCY - Westminster,FOOD STANDARDS AGENCY - Westminster,2018-07-24,EXP - PURCHASE OF GOODS/SERVICES - RAIL TRAVEL,Food Crime Unit - Admin,CORPORATE TRAVEL MANAGEMENT NORTH LTD,1011706641,-26.4,TRAVEL EXPENSES WK 28,BD1 5HQ,ADMIN
FOOD STANDARDS AGENCY - Westminster,FOOD STANDARDS AGENCY - Westminster,2018-07-09,EXP - PURCHASE OF GOODS/SERVICES - AIR TRAVEL,Food Crime Unit - Admin,CORPORATE TRAVEL MANAGEMENT NORTH LTD,1011706509,-43.6,TRAVEL EXPENSES WK 26,BD1 5HQ,ADMIN
FOOD STANDARDS AGENCY - Westminster,FOOD STANDARDS AGENCY - Westminster,2018-07-03,EXP - PURCHASE OF GOODS/SERVICES - RAIL TRAVEL,IT Strategy,CORPORATE TRAVEL MANAGEMENT NORTH LTD,1011706459,-51.4,TRAVEL EXPENSES WK 25,BD1 5HQ,ADMIN
FOOD STANDARDS AGENCY - Westminster,FOOD STANDARDS AGENCY - Westminster,2018-07-24,EXP - PURCHASE OF GOODS/SERVICES - SUBSISTENCE,Food Incidents & Resilience - Prog,CORPORATE TRAVEL MANAGEMENT NORTH LTD,1011706641,-80.23,TRAVEL EXPENSES WK 28,BD1 5HQ,PROGRAMME
FOOD STANDARDS AGENCY - Westminster,FOOD STANDARDS AGENCY - Westminster,2018-07-09,EXP - PURCHASE OF GOODS/SERVICES - SUBSISTENCE,Wales and West 4 ,CORPORATE TRAVEL MANAGEMENT NORTH LTD,1011706509,-83.37,TRAVEL EXPENSES WK 26,BD1 5HQ,PROGRAMME
FOOD STANDARDS AGENCY - Westminster,FOOD STANDARDS AGENCY - Westminster,2018-07-03,EXP - PURCHASE OF GOODS/SERVICES - RAIL TRAVEL,Legal Branch A & Investigations,CORPORATE TRAVEL MANAGEMENT NORTH LTD,1011706459,-88.5,TRAVEL EXPENSES WK 25,BD1 5HQ,ADMIN
